Workbook

Sheet Usage
A1: Etape | B1: Feuille (onglets verts) | C1: Procédure
A2: Choix initiaux | B2: Choix initiaux | C2: S'imaginer le personnage, se le représenter : forces, faiblesses, habitudes, manière d'être, etc... Choisir son espèce, son métier, son origine (planète, station, vaisseau nomade, état, faction, etc…) et lui donner un nom Noter ces informations dans les cases vertes de la feuille "Choix initiaux"
A3: Tirage des caractéristiques | B3: Caractéristiques | C3: Tirer 10 fois 2D4 et n'en garder que les 8 tirages les plus hauts Les affecter aux caractéristiques selon l'image que l'on se fait de son personnage et les inscrire dans la zone verte de la feuille "Caractéristiques" Le tableau donne pour chaque espèce les caractéristiques résultant de ce tirage, ainsi que les valeurs qui en sont dérivées
A4: Compétences de jeunesse | B4: Compétences | C4: Affecter des % aux deux compétences marquées en vert dans la colonne "Jeunesse" Les compétences Culture() et Langue() ayant des spécialités, choisir celles-ci et les marquer dans les cases correspondantes vertes Les totaux en bas de colonne passeront en vert lorsque les nombres de compétences et de points affectés seront bons
A5: Compétences d'espèce | B5: Compétences | C5: Affecter des % à des compétences choisies parmi celles marquées en vert dans la colonne portant en titre le nom de l'espèce choisie Pour les compétences ayant des spécialités, choisir celles-ci et les marquer dans les cases vertes correspondantes Les totaux en bas de colonne passeront en vert lorsque les nombres de compétences et de points affectés seront bons
A6: Compétences de métier | B6: Compétences | C6: Affecter des % à des compétences choisies parmi celles marquées en vert dans la colonne portant en titre le nom du métier choisi Pour les compétences ayant des spécialités, choisir celles-ci et les marquer dans les cases vertes correspondantes Les totaux en bas de colonne passeront en vert lorsque les nombres de compétences et de points affectés seront bons
A7: Compétences libres | B7: Compétences | C7: Affecter des % à des compétences de votre choix, dans la colonne "Libre" Pour les compétences ayant des spécialités, choisir celles-ci et les marquer dans les cases vertes correspondantes Les totaux en bas de colonne passeront en vert lorsque les nombres de compétences et de points affectés seront bons
A8: Historique et contacts | B8: Compétences | C8: Imaginer l'historique et les contacts de votre personnage et les inscrire dans les cases prévues à cet effet, dont la largeur donne une idée de la longueur possible sur chaque ligne. Générer le fichier image SVG est à ce jour la seule manière de vérifier que les lignes ne débordent pas du cadre. Une vérification automatique est prévue pour une version future. Historique : un espace de 7 lignes est prévu. Contacts : 5 lignes sont prévues, une par contact. Indiquer le nom, la profession, l'espèce et l'origine (planète, station ou faction), puis une courte description de la relation liant le personnage et son contact. Dans une version future, il est prévu de réaliser un système de choix parmi une liste de contacts préexistants. Le joueur n'aurait alors qu'à ajouter la description du lien entre son personnage et le contact choisi.
A9: Matériels et implants | B9: Valeurs-Recto Valeurs-Verso | C9: Choisir les matériels et les implants. Actuellement, les valeurs sont à inscrire à la main dans les onglets "Valeur-Recto" et "Valeur-Verso". Il est prévu d'ajouter dans une prochaine version un système de choix dans des listes, ainsi que la gestion du nombre de matériel et d'implants et le report automatique des caractéristiques des armes au recto.
A10: Création de la feuille de personnage | B10: Usage / Compétences / Valeurs-Verso / Fichiers | C10: Dans l'une des feuilles "Usage", "Fichiers", "Compétences" ou "Valeurs-verso", cliquer sur le bouton "Créer la feuille de personnage au format image SVG" Facultatif : si nécessaire, renseigner les noms de fichiers dans la feuille "Fichiers" - Par défaut, fichier modèle : Persos-<version>-Modele-Recto.svg et Persos-<version>-Modele-Verso.svg - Par défaut, nom du fichier feuille de perso : <Nom du fichier Excel>-Recto.svg et <Nom du fichier Excel>-Verso.svg
A12: Couleur des onglets
A13: Guide d'utilisation
A14: Remplir uniquement les cellules vertes | B14: Non encore utilisable dans cette version
A15: Calculs internes, ne pas toucher
A16: Pour information, ne pas toucher

Sheet Choix initiaux
A1: Nom
A2: Ant'AkaR H'alk
A4: Joueur
A5: _ _ _ _ _ _ _ _ _ _ _ _ _ _ _ _ _ _ _ _
A7: Espèce
A8: K'Rinn
A10: Métier
A11: Détective
A13: Origine
A14: K'Tilk'Elh, Secession de Ka'Ralt

Sheet Caractéristiques
A1: Caractéristique | B1: 2D4 (2-8) | C1: Changeforme | D1: Humain | E1: K'Rinn | F1: Marionnettiste | G1: Rith | H1: Sshaad | J1: Porteur | K1: Porteur | L1: Porteur
A2: TAIlle | B2: 4 | C2: =ROUNDUP(8+$B2*1.5,0) -> 14 | D2: =8+$B2*1 -> 12 | E2: =6+$B2*1 -> 10 | F2: =ROUNDUP(1+$B2/2,0) -> 3 | G2: =17+$B2*1 -> 21 | H2: =9+$B2*1 -> 13
A3: APParence | B3: 3 | C3: =($B3+7)*1 -> 10 | D3: 10 | E3: 10 | F3: 10 | G3: 10 | H3: 10
A4: DEXtérité | B4: 5 | C4: =($B4+7)*1 -> 12 | D4: =($B4+7)*1 -> 12 | E4: =($B4+10)*1 -> 15 | F4: =($B4+8)*1 -> 13 | G4: =($B4+4)*1 -> 9 | H4: =($B4+4)*1 -> 9
A5: FORce | B5: 3 | C5: =($B5+7)*1 -> 10 | D5: =($B5+10)*1 -> 13 | E5: =($B5+4)*1 -> 7 | F5: =ROUNDUP(($B5+2)/2,0) -> 3 | G5: =($B5+16)*1 -> 19 | H5: =($B5+10)*1 -> 13
A6: CONstitution | B6: 2 | C6: =($B6+7)*1 -> 9 | D6: =($B6+4)*1 -> 6 | E6: =($B6+4)*1 -> 6 | F6: =($B6+4)*1 -> 6 | G6: =($B6+10)*1 -> 12 | H6: =($B6+10)*1 -> 12
A7: INTelligence | B7: 7 | C7: =($B7+7)*1 -> 14 | D7: =($B7+10)*1 -> 17 | E7: =($B7+10)*1 -> 17 | F7: =($B7+13)*1 -> 20 | G7: =($B7+7)*1 -> 14 | H7: =($B7+5)*1 -> 12
A8: PERception | B8: 8 | C8: 5 | D8: =($B8+7)*1 -> 15 | E8: =($B8+7)*1 -> 15 | F8: =($B8+10)*1 -> 18 | G8: =($B8+8)*1 -> 16 | H8: =($B8+11)*1 -> 19
A9: VOLonté | B9: 5 | C9: =($B9+7)*1 -> 12 | D9: =($B9+4)*1 -> 9 | E9: =($B9+7)*1 -> 12 | F9: =($B9+13)*1 -> 18 | G9: =($B9+10)*1 -> 15 | H9: =($B9+10)*1 -> 15
A11: Points de Vie | C11: =ROUNDUP((C2+C6)/2,0) -> 12 | D11: 9 | E11: 8 | F11: 5 | G11: 17 | H11: 13 | J11: =ROUNDUP((J2+J6)/2,0) -> 0 | K11: 0 | L11: 0
A12: Initiative | C12: =C4+10 -> 22 | D12: 22 | E12: 25 | F12: 23 | G12: 19 | H12: 19 | J12: =J4+10 -> 10 | K12: 10 | L12: 10
A13: Bonus aux dégâts | C13: =LOOKUP(C5+C2,{2;11;17;25;33;41;57;100},{"0";"+1D2";"+1D4";"+1D6";"+2D4";"+2D6";"+3D6"}) -> +1D4 | D13: =LOOKUP(D5+D2,{2;11;17;25;33;41;57;100},{"0";"+1D2";"+1D4";"+1D6";"+2D4";"+2D6";"+3D6"}) -> +1D6 | E13: =LOOKUP(E5+E2,{2;11;17;25;33;41;57;100},{"0";"+1D2";"+1D4";"+1D6";"+2D4";"+2D6";"+3D6"}) -> +1D4 | F13: =LOOKUP(F5+F2,{2;11;17;25;33;41;57;100},{"Aucun";"+1D2";"+1D4";"+1D6";"+2D4";"+2D6";"+3D6"}) -> Aucun | G13: =LOOKUP(G5+G2,{2;11;17;25;33;41;57;100},{"0";"+1D2";"+1D4";"+1D6";"+2D4";"+2D6";"+3D6"}) -> +2D4 | H13: =LOOKUP(H5+H2,{2;11;17;25;33;41;57;100},{"0";"+1D2";"+1D4";"+1D6";"+2D4";"+2D6";"+3D6"}) -> +1D6 | J13: =LOOKUP(J5+J2,{2;11;17;25;33;41;57;100},{"0";"+1D2";"+1D4";"+1D6";"+2D4";"+2D6";"+3D6"}) ->  | K13: =LOOKUP(K5+K2,{2;11;17;25;33;41;57;100},{"0";"+1D2";"+1D4";"+1D6";"+2D4";"+2D6";"+3D6"}) ->  | L13: =LOOKUP(L5+L2,{2;11;17;25;33;41;57;100},{"0";"+1D2";"+1D4";"+1D6";"+2D4";"+2D6";"+3D6"}) -> 
A14: Armes naturelles | C14: 1D4 | D14: 1D4+2 | E14: 1D4 | F14: 1D2 | G14: 3D4+2 | H14: 2D4+2
A15: Armure naturelle | C15: 1 | D15: 1 | E15: 1 | F15: 0 | G15: 2 | H15: 2
A16: Masse (kg) | C16: =0.5*C2^2 -> 98 | D16: =0.5*D2^2 -> 72 | E16: 50 | F16: 4.5 | G16: 220.5 | H16: 84.5 | J16: =0.5*J2^2 -> 0 | K16: 0 | L16: 0
B17: =SUM(B2:B9) -> 37

Sheet Compétences
A1: Domaine | B1: Compétence | C1: Spécialité | D1: Base | E1: Jeunesse | F1: ='Choix initiaux'!A8 -> K'Rinn | G1: ='Choix initiaux'!A11 -> Détective | H1: Libre | I1: Points | J1: Modifiées | K1: Total | L1: Niveau
A2: Interaction | B2: ='Compétence par défaut'!B2 -> Baratin | D2: =IF(SUM(CHOOSE(LOOKUP($F$1,Caractéristiques!$C$1:$H$1,{1;2;3;4;5;6}), 'Compétence par défaut'!$E2,'Compétence par défaut'!$F2,'Compétence par défaut'!$G2,'Compétence par défaut'!$H2,'Compétence par défaut'!$I2,'Compétence par défaut'!$J2))=0,'Compétence par défaut'!$D2,CHOOSE(LOOKUP($F$1,Caractéristiques!$C$1:$H$1,{1;2;3;4;5;6}), 'Compétence par défaut'!$E2,'Compétence par défaut'!$F2,'Compétence par défaut'!$G2,'Compétence par défaut'!$H2,'Compétence par défaut'!$I2,'Compétence par défaut'!$J2)) -> 5 | I2: =IF(SUM(E2:H2)=0,"",SUM(E2:H2)) ->  | J2: =IF(SUM(I2)=0,"",I2+D2) ->  | K2: =SUM(D2,I2) -> 5 | L2: =LOOKUP(K2,{0;29;49;79;99},{"";0.1;0.2;0.5;1}) ->  | M2: Historique
B3: ='Compétence par défaut'!B3 -> Commandement | D3: =IF(SUM(CHOOSE(LOOKUP($F$1,Caractéristiques!$C$1:$H$1,{1;2;3;4;5;6}), 'Compétence par défaut'!$E3,'Compétence par défaut'!$F3,'Compétence par défaut'!$G3,'Compétence par défaut'!$H3,'Compétence par défaut'!$I3,'Compétence par défaut'!$J3))=0,'Compétence par défaut'!$D3,CHOOSE(LOOKUP($F$1,Caractéristiques!$C$1:$H$1,{1;2;3;4;5;6}), 'Compétence par défaut'!$E3,'Compétence par défaut'!$F3,'Compétence par défaut'!$G3,'Compétence par défaut'!$H3,'Compétence par défaut'!$I3,'Compétence par défaut'!$J3)) -> 5 | K3: 5 | L3: =LOOKUP(K3,{0;29;49;79;99},{"";0.1;0.2;0.5;1}) ->  | M3: Eclose sur un monde trop froid, Ant’AkaR a passé son enfance à rêver de terraformation. Après sa
B4: ='Compétence par défaut'!B4 -> Culture () | C4: Ka'Ralt | D4: =IF(SUM(CHOOSE(LOOKUP($F$1,Caractéristiques!$C$1:$H$1,{1;2;3;4;5;6}), 'Compétence par défaut'!$E4,'Compétence par défaut'!$F4,'Compétence par défaut'!$G4,'Compétence par défaut'!$H4,'Compétence par défaut'!$I4,'Compétence par défaut'!$J4))=0,'Compétence par défaut'!$D4,CHOOSE(LOOKUP($F$1,Caractéristiques!$C$1:$H$1,{1;2;3;4;5;6}), 'Compétence par défaut'!$E4,'Compétence par défaut'!$F4,'Compétence par défaut'!$G4,'Compétence par défaut'!$H4,'Compétence par défaut'!$I4,'Compétence par défaut'!$J4)) -> 15 | E4: 25 | I4: 25 | J4: 40 | K4: 40 | L4: =LOOKUP(K4,{0;29;49;79;99},{"";0.1;0.2;0.5;1}) -> 0.1 | M4: métamorphose, trop frêle pour la rude vie de terrain, elle a été employée dans la diplomatie. Lors
B5: ='Compétence par défaut'!B5 -> Culture () | C5: Bureaucratie | D5: =IF(SUM(CHOOSE(LOOKUP($F$1,Caractéristiques!$C$1:$H$1,{1;2;3;4;5;6}), 'Compétence par défaut'!$E5,'Compétence par défaut'!$F5,'Compétence par défaut'!$G5,'Compétence par défaut'!$H5,'Compétence par défaut'!$I5,'Compétence par défaut'!$J5))=0,'Compétence par défaut'!$D5,CHOOSE(LOOKUP($F$1,Caractéristiques!$C$1:$H$1,{1;2;3;4;5;6}), 'Compétence par défaut'!$E5,'Compétence par défaut'!$F5,'Compétence par défaut'!$G5,'Compétence par défaut'!$H5,'Compétence par défaut'!$I5,'Compétence par défaut'!$J5)) -> 5 | G5: 40 | I5: 40 | J5: 45 | K5: 45 | L5: =LOOKUP(K5,{0;29;49;79;99},{"";0.1;0.2;0.5;1}) -> 0.1 | M5: des négociations avec les Rithai, elle a déjoué un complot contre l’envoyé de la Rithai Kemae.
B6: ='Compétence par défaut'!B6 -> Enseignement | D6: =IF(SUM(CHOOSE(LOOKUP($F$1,Caractéristiques!$C$1:$H$1,{1;2;3;4;5;6}), 'Compétence par défaut'!$E6,'Compétence par défaut'!$F6,'Compétence par défaut'!$G6,'Compétence par défaut'!$H6,'Compétence par défaut'!$I6,'Compétence par défaut'!$J6))=0,'Compétence par défaut'!$D6,CHOOSE(LOOKUP($F$1,Caractéristiques!$C$1:$H$1,{1;2;3;4;5;6}), 'Compétence par défaut'!$E6,'Compétence par défaut'!$F6,'Compétence par défaut'!$G6,'Compétence par défaut'!$H6,'Compétence par défaut'!$I6,'Compétence par défaut'!$J6)) -> 20 | K6: 20 | L6: =LOOKUP(K6,{0;29;49;79;99},{"";0.1;0.2;0.5;1}) ->  | M6: Elle s’est alors passionnée pour les enquêtes et a parcouru les espaces rith et humain. Pour sa
B7: ='Compétence par défaut'!B7 -> Investigation | D7: =IF(SUM(CHOOSE(LOOKUP($F$1,Caractéristiques!$C$1:$H$1,{1;2;3;4;5;6}), 'Compétence par défaut'!$E7,'Compétence par défaut'!$F7,'Compétence par défaut'!$G7,'Compétence par défaut'!$H7,'Compétence par défaut'!$I7,'Compétence par défaut'!$J7))=0,'Compétence par défaut'!$D7,CHOOSE(LOOKUP($F$1,Caractéristiques!$C$1:$H$1,{1;2;3;4;5;6}), 'Compétence par défaut'!$E7,'Compétence par défaut'!$F7,'Compétence par défaut'!$G7,'Compétence par défaut'!$H7,'Compétence par défaut'!$I7,'Compétence par défaut'!$J7)) -> 15 | G7: 50 | I7: 50 | J7: 65 | K7: 65 | L7: =LOOKUP(K7,{0;29;49;79;99},{"";0.1;0.2;0.5;1}) -> 0.2 | M7: sécurité, elle y a appris le combat, malgré sa répugnance. Son passé de diplomate, son intelligence
B8: ='Compétence par défaut'!B8 -> Langue () | C8: Ka'Raltien | D8: =IF(SUM(CHOOSE(LOOKUP($F$1,Caractéristiques!$C$1:$H$1,{1;2;3;4;5;6}), 'Compétence par défaut'!$E8,'Compétence par défaut'!$F8,'Compétence par défaut'!$G8,'Compétence par défaut'!$H8,'Compétence par défaut'!$I8,'Compétence par défaut'!$J8))=0,'Compétence par défaut'!$D8,CHOOSE(LOOKUP($F$1,Caractéristiques!$C$1:$H$1,{1;2;3;4;5;6}), 'Compétence par défaut'!$E8,'Compétence par défaut'!$F8,'Compétence par défaut'!$G8,'Compétence par défaut'!$H8,'Compétence par défaut'!$I8,'Compétence par défaut'!$J8)) -> 25 | E8: 25 | I8: 25 | J8: 50 | K8: 50 | L8: =LOOKUP(K8,{0;29;49;79;99},{"";0.1;0.2;0.5;1}) -> 0.2 | M8: vive et ses sens toujours aux aguets lui donnent un avantage dans les enquêtes impliquant plusieurs
B9: ='Compétence par défaut'!B9 -> Langue () | C9: Irilia | D9: =IF(SUM(CHOOSE(LOOKUP($F$1,Caractéristiques!$C$1:$H$1,{1;2;3;4;5;6}), 'Compétence par défaut'!$E9,'Compétence par défaut'!$F9,'Compétence par défaut'!$G9,'Compétence par défaut'!$H9,'Compétence par défaut'!$I9,'Compétence par défaut'!$J9))=0,'Compétence par défaut'!$D9,CHOOSE(LOOKUP($F$1,Caractéristiques!$C$1:$H$1,{1;2;3;4;5;6}), 'Compétence par défaut'!$E9,'Compétence par défaut'!$F9,'Compétence par défaut'!$G9,'Compétence par défaut'!$H9,'Compétence par défaut'!$I9,'Compétence par défaut'!$J9)) -> 20 | F9: 20 | I9: 20 | J9: 40 | K9: 40 | L9: =LOOKUP(K9,{0;29;49;79;99},{"";0.1;0.2;0.5;1}) -> 0.1 | M9: espèces. Elle est basée sur Nouvelle Hong-Kong, aux limites des espaces k'rinn, humain et rith.
B10: ='Compétence par défaut'!B10 -> Langue () | C10: Mandarin | D10: =IF(SUM(CHOOSE(LOOKUP($F$1,Caractéristiques!$C$1:$H$1,{1;2;3;4;5;6}), 'Compétence par défaut'!$E10,'Compétence par défaut'!$F10,'Compétence par défaut'!$G10,'Compétence par défaut'!$H10,'Compétence par défaut'!$I10,'Compétence par défaut'!$J10))=0,'Compétence par défaut'!$D10,CHOOSE(LOOKUP($F$1,Caractéristiques!$C$1:$H$1,{1;2;3;4;5;6}), 'Compétence par défaut'!$E10,'Compétence par défaut'!$F10,'Compétence par défaut'!$G10,'Compétence par défaut'!$H10,'Compétence par défaut'!$I10,'Compétence par défaut'!$J10)) -> 15 | G10: 30 | I10: 30 | J10: 45 | K10: 45 | L10: =LOOKUP(K10,{0;29;49;79;99},{"";0.1;0.2;0.5;1}) -> 0.1
B11: ='Compétence par défaut'!B11 -> Marchandage | D11: =IF(SUM(CHOOSE(LOOKUP($F$1,Caractéristiques!$C$1:$H$1,{1;2;3;4;5;6}), 'Compétence par défaut'!$E11,'Compétence par défaut'!$F11,'Compétence par défaut'!$G11,'Compétence par défaut'!$H11,'Compétence par défaut'!$I11,'Compétence par défaut'!$J11))=0,'Compétence par défaut'!$D11,CHOOSE(LOOKUP($F$1,Caractéristiques!$C$1:$H$1,{1;2;3;4;5;6}), 'Compétence par défaut'!$E11,'Compétence par défaut'!$F11,'Compétence par défaut'!$G11,'Compétence par défaut'!$H11,'Compétence par défaut'!$I11,'Compétence par défaut'!$J11)) -> 5 | K11: 5 | L11: =LOOKUP(K11,{0;29;49;79;99},{"";0.1;0.2;0.5;1}) ->  | M11: Rilathn ud Irilia - Rith - Ambassadeur itinérant Irilia - Lui doit la vie dans l'incident de T'Kell
B12: ='Compétence par défaut'!B12 -> Persuasion | D12: =IF(SUM(CHOOSE(LOOKUP($F$1,Caractéristiques!$C$1:$H$1,{1;2;3;4;5;6}), 'Compétence par défaut'!$E12,'Compétence par défaut'!$F12,'Compétence par défaut'!$G12,'Compétence par défaut'!$H12,'Compétence par défaut'!$I12,'Compétence par défaut'!$J12))=0,'Compétence par défaut'!$D12,CHOOSE(LOOKUP($F$1,Caractéristiques!$C$1:$H$1,{1;2;3;4;5;6}), 'Compétence par défaut'!$E12,'Compétence par défaut'!$F12,'Compétence par défaut'!$G12,'Compétence par défaut'!$H12,'Compétence par défaut'!$I12,'Compétence par défaut'!$J12)) -> 15 | F12: 30 | I12: 30 | J12: 45 | K12: 45 | L12: =LOOKUP(K12,{0;29;49;79;99},{"";0.1;0.2;0.5;1}) -> 0.1 | M12: R’Lef’Kkip – K’Rinn - Marchand et Spatien - Son ancien supérieur sur la station T’Kell
B13: ='Compétence par défaut'!B13 -> Stratégie | D13: =IF(SUM(CHOOSE(LOOKUP($F$1,Caractéristiques!$C$1:$H$1,{1;2;3;4;5;6}), 'Compétence par défaut'!$E13,'Compétence par défaut'!$F13,'Compétence par défaut'!$G13,'Compétence par défaut'!$H13,'Compétence par défaut'!$I13,'Compétence par défaut'!$J13))=0,'Compétence par défaut'!$D13,CHOOSE(LOOKUP($F$1,Caractéristiques!$C$1:$H$1,{1;2;3;4;5;6}), 'Compétence par défaut'!$E13,'Compétence par défaut'!$F13,'Compétence par défaut'!$G13,'Compétence par défaut'!$H13,'Compétence par défaut'!$I13,'Compétence par défaut'!$J13)) -> 5 | K13: 5 | L13: =LOOKUP(K13,{0;29;49;79;99},{"";0.1;0.2;0.5;1}) ->  | M13: Chang-Li Liang - Humaine - Détective - Son employeur sur la station Nouvelle Hong-Kong
A14: Perception | B14: ='Compétence par défaut'!B14 -> Remarquer | D14: =IF(SUM(CHOOSE(LOOKUP($F$1,Caractéristiques!$C$1:$H$1,{1;2;3;4;5;6}), 'Compétence par défaut'!$E14,'Compétence par défaut'!$F14,'Compétence par défaut'!$G14,'Compétence par défaut'!$H14,'Compétence par défaut'!$I14,'Compétence par défaut'!$J14))=0,'Compétence par défaut'!$D14,CHOOSE(LOOKUP($F$1,Caractéristiques!$C$1:$H$1,{1;2;3;4;5;6}), 'Compétence par défaut'!$E14,'Compétence par défaut'!$F14,'Compétence par défaut'!$G14,'Compétence par défaut'!$H14,'Compétence par défaut'!$I14,'Compétence par défaut'!$J14)) -> 20 | G14: 50 | I14: 50 | J14: 70 | K14: 70 | L14: =LOOKUP(K14,{0;29;49;79;99},{"";0.1;0.2;0.5;1}) -> 0.2 | M14: R’Lef’Lekt – K’Rinn (Défenseur) - Chasseur de primes - Ennemi depuis T’Kell
B15: ='Compétence par défaut'!B15 -> Intuition | D15: =IF(SUM(CHOOSE(LOOKUP($F$1,Caractéristiques!$C$1:$H$1,{1;2;3;4;5;6}), 'Compétence par défaut'!$E15,'Compétence par défaut'!$F15,'Compétence par défaut'!$G15,'Compétence par défaut'!$H15,'Compétence par défaut'!$I15,'Compétence par défaut'!$J15))=0,'Compétence par défaut'!$D15,CHOOSE(LOOKUP($F$1,Caractéristiques!$C$1:$H$1,{1;2;3;4;5;6}), 'Compétence par défaut'!$E15,'Compétence par défaut'!$F15,'Compétence par défaut'!$G15,'Compétence par défaut'!$H15,'Compétence par défaut'!$I15,'Compétence par défaut'!$J15)) -> 10 | K15: 10 | L15: =LOOKUP(K15,{0;29;49;79;99},{"";0.1;0.2;0.5;1}) ->  | M15: Navnit Sarraoui - Humain - Enquêteur - Police Stellaire, espace humain - Commanditaire régulier
B16: ='Compétence par défaut'!B16 -> Orientation () | D16: =IF(SUM(CHOOSE(LOOKUP($F$1,Caractéristiques!$C$1:$H$1,{1;2;3;4;5;6}), 'Compétence par défaut'!$E16,'Compétence par défaut'!$F16,'Compétence par défaut'!$G16,'Compétence par défaut'!$H16,'Compétence par défaut'!$I16,'Compétence par défaut'!$J16))=0,'Compétence par défaut'!$D16,CHOOSE(LOOKUP($F$1,Caractéristiques!$C$1:$H$1,{1;2;3;4;5;6}), 'Compétence par défaut'!$E16,'Compétence par défaut'!$F16,'Compétence par défaut'!$G16,'Compétence par défaut'!$H16,'Compétence par défaut'!$I16,'Compétence par défaut'!$J16)) -> 5 | K16: 5 | L16: =LOOKUP(K16,{0;29;49;79;99},{"";0.1;0.2;0.5;1}) -> 
A17: Dextérité | B17: ='Compétence par défaut'!B17 -> Déguisement | D17: =IF(SUM(CHOOSE(LOOKUP($F$1,Caractéristiques!$C$1:$H$1,{1;2;3;4;5;6}), 'Compétence par défaut'!$E17,'Compétence par défaut'!$F17,'Compétence par défaut'!$G17,'Compétence par défaut'!$H17,'Compétence par défaut'!$I17,'Compétence par défaut'!$J17))=0,'Compétence par défaut'!$D17,CHOOSE(LOOKUP($F$1,Caractéristiques!$C$1:$H$1,{1;2;3;4;5;6}), 'Compétence par défaut'!$E17,'Compétence par défaut'!$F17,'Compétence par défaut'!$G17,'Compétence par défaut'!$H17,'Compétence par défaut'!$I17,'Compétence par défaut'!$J17)) -> 10 | K17: 10 | L17: =LOOKUP(K17,{0;29;49;79;99},{"";0.1;0.2;0.5;1}) -> 
B18: ='Compétence par défaut'!B18 -> Discrétion | D18: =IF(SUM(CHOOSE(LOOKUP($F$1,Caractéristiques!$C$1:$H$1,{1;2;3;4;5;6}), 'Compétence par défaut'!$E18,'Compétence par défaut'!$F18,'Compétence par défaut'!$G18,'Compétence par défaut'!$H18,'Compétence par défaut'!$I18,'Compétence par défaut'!$J18))=0,'Compétence par défaut'!$D18,CHOOSE(LOOKUP($F$1,Caractéristiques!$C$1:$H$1,{1;2;3;4;5;6}), 'Compétence par défaut'!$E18,'Compétence par défaut'!$F18,'Compétence par défaut'!$G18,'Compétence par défaut'!$H18,'Compétence par défaut'!$I18,'Compétence par défaut'!$J18)) -> 10 | K18: 10 | L18: =LOOKUP(K18,{0;29;49;79;99},{"";0.1;0.2;0.5;1}) -> 
B19: ='Compétence par défaut'!B19 -> Dissimulation | D19: =IF(SUM(CHOOSE(LOOKUP($F$1,Caractéristiques!$C$1:$H$1,{1;2;3;4;5;6}), 'Compétence par défaut'!$E19,'Compétence par défaut'!$F19,'Compétence par défaut'!$G19,'Compétence par défaut'!$H19,'Compétence par défaut'!$I19,'Compétence par défaut'!$J19))=0,'Compétence par défaut'!$D19,CHOOSE(LOOKUP($F$1,Caractéristiques!$C$1:$H$1,{1;2;3;4;5;6}), 'Compétence par défaut'!$E19,'Compétence par défaut'!$F19,'Compétence par défaut'!$G19,'Compétence par défaut'!$H19,'Compétence par défaut'!$I19,'Compétence par défaut'!$J19)) -> 10 | K19: 10 | L19: =LOOKUP(K19,{0;29;49;79;99},{"";0.1;0.2;0.5;1}) -> 
B20: ='Compétence par défaut'!B20 -> Illusion | D20: =IF(SUM(CHOOSE(LOOKUP($F$1,Caractéristiques!$C$1:$H$1,{1;2;3;4;5;6}), 'Compétence par défaut'!$E20,'Compétence par défaut'!$F20,'Compétence par défaut'!$G20,'Compétence par défaut'!$H20,'Compétence par défaut'!$I20,'Compétence par défaut'!$J20))=0,'Compétence par défaut'!$D20,CHOOSE(LOOKUP($F$1,Caractéristiques!$C$1:$H$1,{1;2;3;4;5;6}), 'Compétence par défaut'!$E20,'Compétence par défaut'!$F20,'Compétence par défaut'!$G20,'Compétence par défaut'!$H20,'Compétence par défaut'!$I20,'Compétence par défaut'!$J20)) -> 5 | K20: 5 | L20: =LOOKUP(K20,{0;29;49;79;99},{"";0.1;0.2;0.5;1}) -> 
A21: Physique | B21: ='Compétence par défaut'!B21 -> Pilotage () | C21: Drones | D21: =IF(SUM(CHOOSE(LOOKUP($F$1,Caractéristiques!$C$1:$H$1,{1;2;3;4;5;6}), 'Compétence par défaut'!$E21,'Compétence par défaut'!$F21,'Compétence par défaut'!$G21,'Compétence par défaut'!$H21,'Compétence par défaut'!$I21,'Compétence par défaut'!$J21))=0,'Compétence par défaut'!$D21,CHOOSE(LOOKUP($F$1,Caractéristiques!$C$1:$H$1,{1;2;3;4;5;6}), 'Compétence par défaut'!$E21,'Compétence par défaut'!$F21,'Compétence par défaut'!$G21,'Compétence par défaut'!$H21,'Compétence par défaut'!$I21,'Compétence par défaut'!$J21)) -> 15 | H21: 40 | I21: 40 | J21: 55 | K21: 55 | L21: =LOOKUP(K21,{0;29;49;79;99},{"";0.1;0.2;0.5;1}) -> 0.2
B22: ='Compétence par défaut'!B22 -> Pilotage () | D22: =IF(SUM(CHOOSE(LOOKUP($F$1,Caractéristiques!$C$1:$H$1,{1;2;3;4;5;6}), 'Compétence par défaut'!$E22,'Compétence par défaut'!$F22,'Compétence par défaut'!$G22,'Compétence par défaut'!$H22,'Compétence par défaut'!$I22,'Compétence par défaut'!$J22))=0,'Compétence par défaut'!$D22,CHOOSE(LOOKUP($F$1,Caractéristiques!$C$1:$H$1,{1;2;3;4;5;6}), 'Compétence par défaut'!$E22,'Compétence par défaut'!$F22,'Compétence par défaut'!$G22,'Compétence par défaut'!$H22,'Compétence par défaut'!$I22,'Compétence par défaut'!$J22)) -> 15 | K22: 15 | L22: =LOOKUP(K22,{0;29;49;79;99},{"";0.1;0.2;0.5;1}) -> 
B23: ='Compétence par défaut'!B23 -> Grimper | D23: =IF(SUM(CHOOSE(LOOKUP($F$1,Caractéristiques!$C$1:$H$1,{1;2;3;4;5;6}), 'Compétence par défaut'!$E23,'Compétence par défaut'!$F23,'Compétence par défaut'!$G23,'Compétence par défaut'!$H23,'Compétence par défaut'!$I23,'Compétence par défaut'!$J23))=0,'Compétence par défaut'!$D23,CHOOSE(LOOKUP($F$1,Caractéristiques!$C$1:$H$1,{1;2;3;4;5;6}), 'Compétence par défaut'!$E23,'Compétence par défaut'!$F23,'Compétence par défaut'!$G23,'Compétence par défaut'!$H23,'Compétence par défaut'!$I23,'Compétence par défaut'!$J23)) -> 20 | K23: 20 | L23: =LOOKUP(K23,{0;29;49;79;99},{"";0.1;0.2;0.5;1}) -> 
B24: ='Compétence par défaut'!B24 -> Lancer | D24: =IF(SUM(CHOOSE(LOOKUP($F$1,Caractéristiques!$C$1:$H$1,{1;2;3;4;5;6}), 'Compétence par défaut'!$E24,'Compétence par défaut'!$F24,'Compétence par défaut'!$G24,'Compétence par défaut'!$H24,'Compétence par défaut'!$I24,'Compétence par défaut'!$J24))=0,'Compétence par défaut'!$D24,CHOOSE(LOOKUP($F$1,Caractéristiques!$C$1:$H$1,{1;2;3;4;5;6}), 'Compétence par défaut'!$E24,'Compétence par défaut'!$F24,'Compétence par défaut'!$G24,'Compétence par défaut'!$H24,'Compétence par défaut'!$I24,'Compétence par défaut'!$J24)) -> 25 | K24: 25 | L24: =LOOKUP(K24,{0;29;49;79;99},{"";0.1;0.2;0.5;1}) -> 
B25: ='Compétence par défaut'!B25 -> Nager | D25: =IF(SUM(CHOOSE(LOOKUP($F$1,Caractéristiques!$C$1:$H$1,{1;2;3;4;5;6}), 'Compétence par défaut'!$E25,'Compétence par défaut'!$F25,'Compétence par défaut'!$G25,'Compétence par défaut'!$H25,'Compétence par défaut'!$I25,'Compétence par défaut'!$J25))=0,'Compétence par défaut'!$D25,CHOOSE(LOOKUP($F$1,Caractéristiques!$C$1:$H$1,{1;2;3;4;5;6}), 'Compétence par défaut'!$E25,'Compétence par défaut'!$F25,'Compétence par défaut'!$G25,'Compétence par défaut'!$H25,'Compétence par défaut'!$I25,'Compétence par défaut'!$J25)) -> 5 | K25: 5 | L25: =LOOKUP(K25,{0;29;49;79;99},{"";0.1;0.2;0.5;1}) -> 
B26: ='Compétence par défaut'!B26 -> Sauter | D26: =IF(SUM(CHOOSE(LOOKUP($F$1,Caractéristiques!$C$1:$H$1,{1;2;3;4;5;6}), 'Compétence par défaut'!$E26,'Compétence par défaut'!$F26,'Compétence par défaut'!$G26,'Compétence par défaut'!$H26,'Compétence par défaut'!$I26,'Compétence par défaut'!$J26))=0,'Compétence par défaut'!$D26,CHOOSE(LOOKUP($F$1,Caractéristiques!$C$1:$H$1,{1;2;3;4;5;6}), 'Compétence par défaut'!$E26,'Compétence par défaut'!$F26,'Compétence par défaut'!$G26,'Compétence par défaut'!$H26,'Compétence par défaut'!$I26,'Compétence par défaut'!$J26)) -> 25 | K26: 25 | L26: =LOOKUP(K26,{0;29;49;79;99},{"";0.1;0.2;0.5;1}) -> 
A27: Savoirs | B27: ='Compétence par défaut'!B27 -> Art/Artisanat () | C27: Serrurerie | D27: =IF(SUM(CHOOSE(LOOKUP($F$1,Caractéristiques!$C$1:$H$1,{1;2;3;4;5;6}), 'Compétence par défaut'!$E27,'Compétence par défaut'!$F27,'Compétence par défaut'!$G27,'Compétence par défaut'!$H27,'Compétence par défaut'!$I27,'Compétence par défaut'!$J27))=0,'Compétence par défaut'!$D27,CHOOSE(LOOKUP($F$1,Caractéristiques!$C$1:$H$1,{1;2;3;4;5;6}), 'Compétence par défaut'!$E27,'Compétence par défaut'!$F27,'Compétence par défaut'!$G27,'Compétence par défaut'!$H27,'Compétence par défaut'!$I27,'Compétence par défaut'!$J27)) -> 10 | G27: 30 | I27: 30 | J27: 40 | K27: 40 | L27: =LOOKUP(K27,{0;29;49;79;99},{"";0.1;0.2;0.5;1}) -> 0.1
B28: ='Compétence par défaut'!B28 -> Art/Artisanat () | C28: Falsification | D28: =IF(SUM(CHOOSE(LOOKUP($F$1,Caractéristiques!$C$1:$H$1,{1;2;3;4;5;6}), 'Compétence par défaut'!$E28,'Compétence par défaut'!$F28,'Compétence par défaut'!$G28,'Compétence par défaut'!$H28,'Compétence par défaut'!$I28,'Compétence par défaut'!$J28))=0,'Compétence par défaut'!$D28,CHOOSE(LOOKUP($F$1,Caractéristiques!$C$1:$H$1,{1;2;3;4;5;6}), 'Compétence par défaut'!$E28,'Compétence par défaut'!$F28,'Compétence par défaut'!$G28,'Compétence par défaut'!$H28,'Compétence par défaut'!$I28,'Compétence par défaut'!$J28)) -> 10 | H28: 30 | I28: 30 | J28: 40 | K28: 40 | L28: =LOOKUP(K28,{0;29;49;79;99},{"";0.1;0.2;0.5;1}) -> 0.1
B29: ='Compétence par défaut'!B29 -> Évaluer | D29: =IF(SUM(CHOOSE(LOOKUP($F$1,Caractéristiques!$C$1:$H$1,{1;2;3;4;5;6}), 'Compétence par défaut'!$E29,'Compétence par défaut'!$F29,'Compétence par défaut'!$G29,'Compétence par défaut'!$H29,'Compétence par défaut'!$I29,'Compétence par défaut'!$J29))=0,'Compétence par défaut'!$D29,CHOOSE(LOOKUP($F$1,Caractéristiques!$C$1:$H$1,{1;2;3;4;5;6}), 'Compétence par défaut'!$E29,'Compétence par défaut'!$F29,'Compétence par défaut'!$G29,'Compétence par défaut'!$H29,'Compétence par défaut'!$I29,'Compétence par défaut'!$J29)) -> 5 | K29: 5 | L29: =LOOKUP(K29,{0;29;49;79;99},{"";0.1;0.2;0.5;1}) -> 
B30: ='Compétence par défaut'!B30 -> Jeu () | D30: =IF(SUM(CHOOSE(LOOKUP($F$1,Caractéristiques!$C$1:$H$1,{1;2;3;4;5;6}), 'Compétence par défaut'!$E30,'Compétence par défaut'!$F30,'Compétence par défaut'!$G30,'Compétence par défaut'!$H30,'Compétence par défaut'!$I30,'Compétence par défaut'!$J30))=0,'Compétence par défaut'!$D30,CHOOSE(LOOKUP($F$1,Caractéristiques!$C$1:$H$1,{1;2;3;4;5;6}), 'Compétence par défaut'!$E30,'Compétence par défaut'!$F30,'Compétence par défaut'!$G30,'Compétence par défaut'!$H30,'Compétence par défaut'!$I30,'Compétence par défaut'!$J30)) -> 10 | K30: 10 | L30: =LOOKUP(K30,{0;29;49;79;99},{"";0.1;0.2;0.5;1}) -> 
B31: ='Compétence par défaut'!B31 -> Premiers soins | D31: =IF(SUM(CHOOSE(LOOKUP($F$1,Caractéristiques!$C$1:$H$1,{1;2;3;4;5;6}), 'Compétence par défaut'!$E31,'Compétence par défaut'!$F31,'Compétence par défaut'!$G31,'Compétence par défaut'!$H31,'Compétence par défaut'!$I31,'Compétence par défaut'!$J31))=0,'Compétence par défaut'!$D31,CHOOSE(LOOKUP($F$1,Caractéristiques!$C$1:$H$1,{1;2;3;4;5;6}), 'Compétence par défaut'!$E31,'Compétence par défaut'!$F31,'Compétence par défaut'!$G31,'Compétence par défaut'!$H31,'Compétence par défaut'!$I31,'Compétence par défaut'!$J31)) -> 5 | H31: 30 | I31: 30 | J31: 35 | K31: 35 | L31: =LOOKUP(K31,{0;29;49;79;99},{"";0.1;0.2;0.5;1}) -> 0.1
B32: ='Compétence par défaut'!B32 -> Technologie () | D32: =IF(SUM(CHOOSE(LOOKUP($F$1,Caractéristiques!$C$1:$H$1,{1;2;3;4;5;6}), 'Compétence par défaut'!$E32,'Compétence par défaut'!$F32,'Compétence par défaut'!$G32,'Compétence par défaut'!$H32,'Compétence par défaut'!$I32,'Compétence par défaut'!$J32))=0,'Compétence par défaut'!$D32,CHOOSE(LOOKUP($F$1,Caractéristiques!$C$1:$H$1,{1;2;3;4;5;6}), 'Compétence par défaut'!$E32,'Compétence par défaut'!$F32,'Compétence par défaut'!$G32,'Compétence par défaut'!$H32,'Compétence par défaut'!$I32,'Compétence par défaut'!$J32)) -> 10 | K32: 10 | L32: =LOOKUP(K32,{0;29;49;79;99},{"";0.1;0.2;0.5;1}) -> 
B33: ='Compétence par défaut'!B33 -> Technologie () | D33: =IF(SUM(CHOOSE(LOOKUP($F$1,Caractéristiques!$C$1:$H$1,{1;2;3;4;5;6}), 'Compétence par défaut'!$E33,'Compétence par défaut'!$F33,'Compétence par défaut'!$G33,'Compétence par défaut'!$H33,'Compétence par défaut'!$I33,'Compétence par défaut'!$J33))=0,'Compétence par défaut'!$D33,CHOOSE(LOOKUP($F$1,Caractéristiques!$C$1:$H$1,{1;2;3;4;5;6}), 'Compétence par défaut'!$E33,'Compétence par défaut'!$F33,'Compétence par défaut'!$G33,'Compétence par défaut'!$H33,'Compétence par défaut'!$I33,'Compétence par défaut'!$J33)) -> 10 | K33: 10 | L33: =LOOKUP(K33,{0;29;49;79;99},{"";0.1;0.2;0.5;1}) -> 
B34: ='Compétence par défaut'!B34 -> Technologie () | D34: =IF(SUM(CHOOSE(LOOKUP($F$1,Caractéristiques!$C$1:$H$1,{1;2;3;4;5;6}), 'Compétence par défaut'!$E34,'Compétence par défaut'!$F34,'Compétence par défaut'!$G34,'Compétence par défaut'!$H34,'Compétence par défaut'!$I34,'Compétence par défaut'!$J34))=0,'Compétence par défaut'!$D34,CHOOSE(LOOKUP($F$1,Caractéristiques!$C$1:$H$1,{1;2;3;4;5;6}), 'Compétence par défaut'!$E34,'Compétence par défaut'!$F34,'Compétence par défaut'!$G34,'Compétence par défaut'!$H34,'Compétence par défaut'!$I34,'Compétence par défaut'!$J34)) -> 10 | K34: 10 | L34: =LOOKUP(K34,{0;29;49;79;99},{"";0.1;0.2;0.5;1}) -> 
A35: Combat | B35: ='Compétence par défaut'!B35 -> Bagarre | D35: =IF(SUM(CHOOSE(LOOKUP($F$1,Caractéristiques!$C$1:$H$1,{1;2;3;4;5;6}), 'Compétence par défaut'!$E35,'Compétence par défaut'!$F35,'Compétence par défaut'!$G35,'Compétence par défaut'!$H35,'Compétence par défaut'!$I35,'Compétence par défaut'!$J35))=0,'Compétence par défaut'!$D35,CHOOSE(LOOKUP($F$1,Caractéristiques!$C$1:$H$1,{1;2;3;4;5;6}), 'Compétence par défaut'!$E35,'Compétence par défaut'!$F35,'Compétence par défaut'!$G35,'Compétence par défaut'!$H35,'Compétence par défaut'!$I35,'Compétence par défaut'!$J35)) -> 22 | K35: 22 | L35: =LOOKUP(K35,{0;29;49;79;99},{"";0.1;0.2;0.5;1}) -> 
B36: ='Compétence par défaut'!B36 -> Esquive | D36: =IF(SUM(CHOOSE(LOOKUP($F$1,Caractéristiques!$C$1:$H$1,{1;2;3;4;5;6}), 'Compétence par défaut'!$E36,'Compétence par défaut'!$F36,'Compétence par défaut'!$G36,'Compétence par défaut'!$H36,'Compétence par défaut'!$I36,'Compétence par défaut'!$J36))=0,'Compétence par défaut'!$D36,CHOOSE(LOOKUP($F$1,Caractéristiques!$C$1:$H$1,{1;2;3;4;5;6}), 'Compétence par défaut'!$E36,'Compétence par défaut'!$F36,'Compétence par défaut'!$G36,'Compétence par défaut'!$H36,'Compétence par défaut'!$I36,'Compétence par défaut'!$J36)) -> 30 | F36: 30 | I36: 30 | J36: 60 | K36: 60 | L36: =LOOKUP(K36,{0;29;49;79;99},{"";0.1;0.2;0.5;1}) -> 0.2
B37: ='Compétence par défaut'!B37 -> Parade | D37: =IF(SUM(CHOOSE(LOOKUP($F$1,Caractéristiques!$C$1:$H$1,{1;2;3;4;5;6}), 'Compétence par défaut'!$E37,'Compétence par défaut'!$F37,'Compétence par défaut'!$G37,'Compétence par défaut'!$H37,'Compétence par défaut'!$I37,'Compétence par défaut'!$J37))=0,'Compétence par défaut'!$D37,CHOOSE(LOOKUP($F$1,Caractéristiques!$C$1:$H$1,{1;2;3;4;5;6}), 'Compétence par défaut'!$E37,'Compétence par défaut'!$F37,'Compétence par défaut'!$G37,'Compétence par défaut'!$H37,'Compétence par défaut'!$I37,'Compétence par défaut'!$J37)) -> 22 | F37: 20 | I37: 20 | J37: 42 | K37: 42 | L37: =LOOKUP(K37,{0;29;49;79;99},{"";0.1;0.2;0.5;1}) -> 0.1
B38: ='Compétence par défaut'!B38 -> Armes de contact | D38: =IF(SUM(CHOOSE(LOOKUP($F$1,Caractéristiques!$C$1:$H$1,{1;2;3;4;5;6}), 'Compétence par défaut'!$E38,'Compétence par défaut'!$F38,'Compétence par défaut'!$G38,'Compétence par défaut'!$H38,'Compétence par défaut'!$I38,'Compétence par défaut'!$J38))=0,'Compétence par défaut'!$D38,CHOOSE(LOOKUP($F$1,Caractéristiques!$C$1:$H$1,{1;2;3;4;5;6}), 'Compétence par défaut'!$E38,'Compétence par défaut'!$F38,'Compétence par défaut'!$G38,'Compétence par défaut'!$H38,'Compétence par défaut'!$I38,'Compétence par défaut'!$J38)) -> 22 | K38: 22 | L38: =LOOKUP(K38,{0;29;49;79;99},{"";0.1;0.2;0.5;1}) -> 
B39: ='Compétence par défaut'!B39 -> Armes à distance | D39: =IF(SUM(CHOOSE(LOOKUP($F$1,Caractéristiques!$C$1:$H$1,{1;2;3;4;5;6}), 'Compétence par défaut'!$E39,'Compétence par défaut'!$F39,'Compétence par défaut'!$G39,'Compétence par défaut'!$H39,'Compétence par défaut'!$I39,'Compétence par défaut'!$J39))=0,'Compétence par défaut'!$D39,CHOOSE(LOOKUP($F$1,Caractéristiques!$C$1:$H$1,{1;2;3;4;5;6}), 'Compétence par défaut'!$E39,'Compétence par défaut'!$F39,'Compétence par défaut'!$G39,'Compétence par défaut'!$H39,'Compétence par défaut'!$I39,'Compétence par défaut'!$J39)) -> 15 | H39: 30 | I39: 30 | J39: 45 | K39: 45 | L39: =LOOKUP(K39,{0;29;49;79;99},{"";0.1;0.2;0.5;1}) -> 0.1
B40: ='Compétence par défaut'!B40 -> Armes lourdes | D40: =IF(SUM(CHOOSE(LOOKUP($F$1,Caractéristiques!$C$1:$H$1,{1;2;3;4;5;6}), 'Compétence par défaut'!$E40,'Compétence par défaut'!$F40,'Compétence par défaut'!$G40,'Compétence par défaut'!$H40,'Compétence par défaut'!$I40,'Compétence par défaut'!$J40))=0,'Compétence par défaut'!$D40,CHOOSE(LOOKUP($F$1,Caractéristiques!$C$1:$H$1,{1;2;3;4;5;6}), 'Compétence par défaut'!$E40,'Compétence par défaut'!$F40,'Compétence par défaut'!$G40,'Compétence par défaut'!$H40,'Compétence par défaut'!$I40,'Compétence par défaut'!$J40)) -> 15 | K40: 15 | L40: =LOOKUP(K40,{0;29;49;79;99},{"";0.1;0.2;0.5;1}) -> 
B41: ='Compétence par défaut'!B41 -> Arts martiaux () | D41: =IF(SUM(CHOOSE(LOOKUP($F$1,Caractéristiques!$C$1:$H$1,{1;2;3;4;5;6}), 'Compétence par défaut'!$E41,'Compétence par défaut'!$F41,'Compétence par défaut'!$G41,'Compétence par défaut'!$H41,'Compétence par défaut'!$I41,'Compétence par défaut'!$J41))=0,'Compétence par défaut'!$D41,CHOOSE(LOOKUP($F$1,Caractéristiques!$C$1:$H$1,{1;2;3;4;5;6}), 'Compétence par défaut'!$E41,'Compétence par défaut'!$F41,'Compétence par défaut'!$G41,'Compétence par défaut'!$H41,'Compétence par défaut'!$I41,'Compétence par défaut'!$J41)) -> 0 | K41: 0 | L41: =LOOKUP(K41,{0;29;49;79;99},{"";0.1;0.2;0.5;1}) -> 
A42: Affectés | E42: =FIXED(COUNTIF(E2:E41,">0"),0,TRUE) & " / 2" -> 2 / 2 | F42: =FIXED(COUNTIF(F2:F41,">0"),0,TRUE) & " / 4" -> 4 / 4 | G42: =FIXED(COUNTIF(G2:G41,">0"),0,TRUE) & " / 5" -> 5 / 5 | H42: =FIXED(COUNTIF(H2:H41,">0"),0,TRUE) & " / 3" -> 4 / 3 | I42: =COUNTIF(I2:I41,">0") -> 15 | J42: =COUNTIF(J2:J41,">0") -> 15 | K42: 39
A43: Total | D43: =SUM(D2:D41) -> 521 | E43: =FIXED(SUM(E2:E41),0,TRUE) & " / 50" -> 50 / 50 | F43: =FIXED(SUM(F2:F41),0,TRUE) & " / 100" -> 100 / 100 | G43: =FIXED(SUM(G2:G41),0,TRUE) & " / 200" -> 200 / 200 | H43: =FIXED(SUM(H2:H41),0,TRUE) & " / 100" -> 130 / 100 | I43: =SUM(I2:I41) -> 480 | J43: 717 | K43: 1001 | L43: =SUM(L2:L41) -> 2

Sheet Matériel
A1: Intitulé | B1: Points | C1: Effets en jeu

Sheet Modele-Recto
A1: Nom | C1: Caractéristique | D1: Valeur | E1: % | G1: Domaine | H1: Compétence | I1: Spécialité | J1: Valeur | L1: PV barre invisible | M1: PV barre visible | O1: Armes
A2: _perso_ | C2: TAIlle | D2: _tai_ | E2: _masse_ | G2: Interaction | H2: Baratin | J2: _baratin%_ | L2: _pv.00.inv_ | M2: _pv.00.vis_ | O2: _armes.1.nom_ | P2: _armes.1.cmp_ | Q2: _armes.1.cps_ | R2: _armes.1.deg_ | S2: _armes.1.mun_
C3: APParence | D3: _app_ | E3: _app%_ | H3: Commandement | J3: _command%_ | L3: _pv.05.inv_ | M3: _pv.05.vis_ | O3: _armes.2.nom_ | P3: _armes.2.cmp_ | Q3: _armes.2.cps_ | R3: _armes.2.deg_ | S3: _armes.2.mun_
A4: Joueur | C4: DEXtérité | D4: _dex_ | E4: _dex%_ | H4: Culture () | I4: _cult.1_ | J4: _cult.1%_ | L4: _pv.10.inv_ | M4: _pv.10.vis_ | O4: _armes.3.nom_ | P4: _armes.3.cmp_ | Q4: _armes.3.cps_ | R4: _armes.3.deg_ | S4: _armes.3.mun_
A5: _joueur_ | C5: FORce | D5: _for_ | E5: _for%_ | H5: Culture () | I5: _cult.2_ | J5: _cult.2%_ | L5: _pv.15.inv_ | M5: _pv.15.vis_ | O5: _armes.4.nom_ | P5: _armes.4.cmp_ | Q5: _armes.4.cps_ | R5: _armes.4.deg_ | S5: _armes.4.mun_
C6: CONstitution | D6: _con_ | E6: _con%_ | H6: Enseignement | J6: _enseign%_ | L6: _pv.20.inv_ | M6: _pv.20.vis_ | O6: _armes.5.nom_ | P6: _armes.5.cmp_ | Q6: _armes.5.cps_ | R6: _armes.5.deg_ | S6: _armes.5.mun_
A7: Espèce | C7: INTelligence | D7: _int_ | E7: _int%_ | H7: Investigation | J7: _investig%_ | L7: _pv.25.inv_ | M7: _pv.25.vis_
A8: _espece_ | C8: PERception | D8: _per_ | E8: _per%_ | H8: Langue () | I8: _lang.1_ | J8: _lang.1%_
C9: VOLonté | D9: _vol_ | E9: _vol%_ | H9: Langue () | I9: _lang.2_ | J9: _lang.2%_
A10: Métier | H10: Langue () | I10: _lang.3_ | J10: _lang.3%_
A11: _metier_ | C11: Points de Vie | D11: _pv_ | H11: Marchandage | J11: _marchand%_
C12: Initiative | D12: _Init_ | H12: Persuasion | J12: _persuad%_
A13: Origine | C13: Bonus aux dégâts | D13: _BonusDegats_ | H13: Stratégie | J13: _strat%_
A14: _origine_ | C14: Armes naturelles | D14: _degnat_ | G14: Perception | H14: Remarquer | J14: _remarqu%_
C15: Armure naturelle | D15: _pa_ | H15: Intuition | J15: _intuit%_
A16: Argent | C16: Masse (kg) | D16: _masse_ | H16: Orientation () | I16: _orient.1_ | J16: _orient.1%_
A17: _argent_ | G17: Dextérité | H17: Déguisement | J17: _deguis%_
H18: Discrétion | J18: _discret%_
H19: Dissimulation | J19: _dissim%_
H20: Illusion | J20: _illus%_
G21: Physique | H21: Pilotage () | I21: _pilot.1_ | J21: _pilot.1%_
H22: Pilotage () | I22: _pilot.2_ | J22: _pilot.2%_
H23: Grimper | J23: _grimp%_
H24: Lancer | J24: _lanc%_
H25: Nager | J25: _nag%_
H26: Sauter | J26: _saut%_
G27: Savoirs | H27: Art/Artisanat () | I27: _art.1_ | J27: _art.1%_
H28: Art/Artisanat () | I28: _art.2_ | J28: _art.2%_
H29: Évaluer | J29: _eval%_
H30: Jeu () | I30: _jeu.1_ | J30: _jeu.1%_
H31: Premiers soins | J31: _1soins%_
H32: Technologie () | I32: _tech.1_ | J32: _tech.1%_
H33: Technologie () | I33: _tech.2_ | J33: _tech.2%_
H34: Technologie () | I34: _tech.3_ | J34: _tech.3%_
G35: Combat | H35: Bagarre | J35: _bagarre%_
H36: Esquive | J36: _esquive%_
H37: Parade | J37: _parade%_
H38: Armes de contact | J38: _contact%_
H39: Armes à distance | J39: _distance%_
H40: Armes lourdes | J40: _lourdes%_
H41: Arts martiaux () | I41: _martiaux.1_ | J41: _martiaux.1%_
H42: Arts martiaux () | I42: _martiaux.2_ | J42: _martiaux.2%_

Sheet Valeurs-Recto
A1: Nom | C1: Caractéristique | D1: Valeur | E1: % | G1: Domaine | H1: Compétence | I1: Spécialité | J1: Valeur | L1: PV barre invisible | M1: PV barre visible | O1: Armes
A2: ='Choix initiaux'!A2 -> Ant'AkaR H'alk | C2: TAIlle | D2: =CHOOSE(LOOKUP($A$8,Caractéristiques!$C$1:$H$1,{1;2;3;4;5;6}),Caractéristiques!$C2,Caractéristiques!$D2,Caractéristiques!$E2,Caractéristiques!$F2,Caractéristiques!$G2,Caractéristiques!$H2) -> 10 | E2: =FLOOR(CHOOSE(LOOKUP($A$8,Caractéristiques!$C$1:$H$1,{1;2;3;4;5;6}),Caractéristiques!$C$16,Caractéristiques!$D$16,Caractéristiques!$E$16,Caractéristiques!$F$16,Caractéristiques!$G$16,Caractéristiques!$H$16),1) -> 50 | G2: Interaction | H2: Baratin | I2: =IF(Compétences!$C2="","",Compétences!$C2) ->  | J2: =Compétences!K2 -> 5 | L2: =REPT("X",IF($D$11< 1, 0, IF($D$11> 4, 5, MOD($D$11,5)))) -> XXXXX | M2: =REPT("X",5-IF($D$11< 1, 0, IF($D$11> 4, 5, MOD($D$11,5)))) ->  | O2: Bâton | P2: C | Q2: 1 | R2: 1D8
C3: APParence | D3: =CHOOSE(LOOKUP($A$8,Caractéristiques!$C$1:$H$1,{1;2;3;4;5;6}),Caractéristiques!$C3,Caractéristiques!$D3,Caractéristiques!$E3,Caractéristiques!$F3,Caractéristiques!$G3,Caractéristiques!$H3) -> 10 | E3: =D3*5 -> 50 | H3: Commandement | I3: =IF(Compétences!$C3="","",Compétences!$C3) ->  | J3: =Compétences!K3 -> 5 | L3: =REPT("X",IF($D$11< 6, 0, IF($D$11> 9, 5, MOD($D$11,5)))) -> XXX | M3: =REPT("X",5-IF($D$11< 6, 0, IF($D$11> 9, 5, MOD($D$11,5)))) -> XX | O3: Taser (étourd.) | P3: D | Q3: 2 | R3: 1D4+2 | S3: 30
A4: Joueur | C4: DEXtérité | D4: =CHOOSE(LOOKUP($A$8,Caractéristiques!$C$1:$H$1,{1;2;3;4;5;6}),Caractéristiques!$C4,Caractéristiques!$D4,Caractéristiques!$E4,Caractéristiques!$F4,Caractéristiques!$G4,Caractéristiques!$H4) -> 15 | E4: 75 | H4: Culture () | I4: =IF(Compétences!$C4="","",Compétences!$C4) -> Ka'Ralt | J4: =Compétences!K4 -> 40 | L4: =REPT("X",IF($D$11<11, 0, IF($D$11>14, 5, MOD($D$11,5)))) ->  | M4: =REPT("X",5-IF($D$11<11, 0, IF($D$11>14, 5, MOD($D$11,5)))) -> XXXXX
A5: ='Choix initiaux'!A5 -> _ _ _ _ _ _ _ _ _ _ _ _ _ _ _ _ _ _ _ _ | C5: FORce | D5: =CHOOSE(LOOKUP($A$8,Caractéristiques!$C$1:$H$1,{1;2;3;4;5;6}),Caractéristiques!$C5,Caractéristiques!$D5,Caractéristiques!$E5,Caractéristiques!$F5,Caractéristiques!$G5,Caractéristiques!$H5) -> 7 | E5: 35 | H5: Culture () | I5: =IF(Compétences!$C5="","",Compétences!$C5) -> Bureaucratie | J5: =Compétences!K5 -> 45 | L5: =REPT("X",IF($D$11<16, 0, IF($D$11>19, 5, MOD($D$11,5)))) ->  | M5: =REPT("X",5-IF($D$11<16, 0, IF($D$11>19, 5, MOD($D$11,5)))) -> XXXXX
C6: CONstitution | D6: =CHOOSE(LOOKUP($A$8,Caractéristiques!$C$1:$H$1,{1;2;3;4;5;6}),Caractéristiques!$C6,Caractéristiques!$D6,Caractéristiques!$E6,Caractéristiques!$F6,Caractéristiques!$G6,Caractéristiques!$H6) -> 6 | E6: 30 | H6: Enseignement | I6: =IF(Compétences!$C6="","",Compétences!$C6) ->  | J6: =Compétences!K6 -> 20 | L6: =REPT("X",IF($D$11<21, 0, IF($D$11>24, 5, MOD($D$11,5)))) ->  | M6: =REPT("X",5-IF($D$11<21, 0, IF($D$11>24, 5, MOD($D$11,5)))) -> XXXXX
A7: Espèce | C7: INTelligence | D7: =CHOOSE(LOOKUP($A$8,Caractéristiques!$C$1:$H$1,{1;2;3;4;5;6}),Caractéristiques!$C7,Caractéristiques!$D7,Caractéristiques!$E7,Caractéristiques!$F7,Caractéristiques!$G7,Caractéristiques!$H7) -> 17 | E7: 85 | H7: Investigation | I7: =IF(Compétences!$C7="","",Compétences!$C7) ->  | J7: =Compétences!K7 -> 65 | L7: =REPT("X",IF($D$11<26, 0, IF($D$11>29, 5, MOD($D$11,5)))) ->  | M7: =REPT("X",5-IF($D$11<26, 0, IF($D$11>29, 5, MOD($D$11,5)))) -> XXXXX
A8: =Compétences!$F$1 -> K'Rinn | C8: PERception | D8: =CHOOSE(LOOKUP($A$8,Caractéristiques!$C$1:$H$1,{1;2;3;4;5;6}),Caractéristiques!$C8,Caractéristiques!$D8,Caractéristiques!$E8,Caractéristiques!$F8,Caractéristiques!$G8,Caractéristiques!$H8) -> 15 | E8: 75 | H8: Langue () | I8: =IF(Compétences!$C8="","",Compétences!$C8) -> Ka'Raltien | J8: =Compétences!K8 -> 50
C9: VOLonté | D9: =CHOOSE(LOOKUP($A$8,Caractéristiques!$C$1:$H$1,{1;2;3;4;5;6}),Caractéristiques!$C9,Caractéristiques!$D9,Caractéristiques!$E9,Caractéristiques!$F9,Caractéristiques!$G9,Caractéristiques!$H9) -> 12 | E9: 60 | H9: Langue () | I9: =IF(AND(Compétences!$C9="",Compétences!$C10<>""),Compétences!$C10,IF(Compétences!$C9="","",Compétences!$C9)) -> Irilia | J9: =IF(AND(Compétences!$C9="",Compétences!$C10<>""),Compétences!K10,Compétences!K9) -> 40
A10: Métier | H10: Langue () | I10: =IF(AND(Compétences!$C10<>"",Compétences!$C9=""),"",IF(Compétences!$C10="","",Compétences!$C10)) -> Mandarin | J10: =IF(AND(Compétences!$C10<>"",Compétences!$C9=""),Compétences!K9,Compétences!K10) -> 45
A11: =Compétences!$G$1 -> Détective | C11: Points de Vie | D11: =CHOOSE(LOOKUP($A$8,Caractéristiques!$C$1:$H$1,{1;2;3;4;5;6}),Caractéristiques!$C11,Caractéristiques!$D11,Caractéristiques!$E11,Caractéristiques!$F11,Caractéristiques!$G11,Caractéristiques!$H11) -> 8 | H11: Marchandage | I11: =IF(Compétences!$C11="","",Compétences!$C11) ->  | J11: =Compétences!K11 -> 5
C12: Initiative | D12: =CHOOSE(LOOKUP($A$8,Caractéristiques!$C$1:$H$1,{1;2;3;4;5;6}),Caractéristiques!$C12,Caractéristiques!$D12,Caractéristiques!$E12,Caractéristiques!$F12,Caractéristiques!$G12,Caractéristiques!$H12) -> 25 | H12: Persuasion | I12: =IF(Compétences!$C12="","",Compétences!$C12) ->  | J12: =Compétences!K12 -> 45
A13: Origine | C13: Bonus aux dégâts | D13: =CHOOSE(LOOKUP($A$8,Caractéristiques!$C$1:$H$1,{1;2;3;4;5;6}),Caractéristiques!$C13,Caractéristiques!$D13,Caractéristiques!$E13,Caractéristiques!$F13,Caractéristiques!$G13,Caractéristiques!$H13) -> +1D4 | H13: Stratégie | I13: =IF(Compétences!$C13="","",Compétences!$C13) ->  | J13: =Compétences!K13 -> 5
A14: ='Choix initiaux'!A14 -> K'Tilk'Elh, Secession de Ka'Ralt | C14: Armes naturelles | D14: =CHOOSE(LOOKUP($A$8,Caractéristiques!$C$1:$H$1,{1;2;3;4;5;6}),Caractéristiques!$C14,Caractéristiques!$D14,Caractéristiques!$E14,Caractéristiques!$F14,Caractéristiques!$G14,Caractéristiques!$H14) -> 1D4 | G14: Perception | H14: Remarquer | I14: =IF(Compétences!$C14="","",Compétences!$C14) ->  | J14: =Compétences!K14 -> 70
C15: Armure naturelle | D15: =CHOOSE(LOOKUP($A$8,Caractéristiques!$C$1:$H$1,{1;2;3;4;5;6}),Caractéristiques!$C15,Caractéristiques!$D15,Caractéristiques!$E15,Caractéristiques!$F15,Caractéristiques!$G15,Caractéristiques!$H15) -> 1 | H15: Intuition | I15: =IF(Compétences!$C15="","",Compétences!$C15) ->  | J15: =Compétences!K15 -> 10
A16: Argent | C16: Masse (kg) | D16: =CHOOSE(LOOKUP($A$8,Caractéristiques!$C$1:$H$1,{1;2;3;4;5;6}),Caractéristiques!$C16,Caractéristiques!$D16,Caractéristiques!$E16,Caractéristiques!$F16,Caractéristiques!$G16,Caractéristiques!$H16) -> 50 | H16: Orientation () | I16: =IF(Compétences!$C16="","",Compétences!$C16) ->  | J16: =Compétences!K16 -> 5
A17: 1000 | G17: Dextérité | H17: Déguisement | I17: =IF(Compétences!$C17="","",Compétences!$C17) ->  | J17: =Compétences!K17 -> 10
H18: Discrétion | I18: =IF(Compétences!$C18="","",Compétences!$C18) ->  | J18: =Compétences!K18 -> 10
H19: Dissimulation | I19: =IF(Compétences!$C19="","",Compétences!$C19) ->  | J19: =Compétences!K19 -> 10
H20: Illusion | I20: =IF(Compétences!$C20="","",Compétences!$C20) ->  | J20: =Compétences!K20 -> 5
G21: Physique | H21: Pilotage () | I21: =IF(Compétences!$C21="","",Compétences!$C21) -> Drones | J21: =Compétences!K21 -> 55
H22: Pilotage () | I22: =IF(Compétences!$C22="","",Compétences!$C22) ->  | J22: =Compétences!K22 -> 15
H23: Grimper | I23: =IF(Compétences!$C23="","",Compétences!$C23) ->  | J23: =Compétences!K23 -> 20
H24: Lancer | I24: =IF(Compétences!$C24="","",Compétences!$C24) ->  | J24: =Compétences!K24 -> 25
H25: Nager | I25: =IF(Compétences!$C25="","",Compétences!$C25) ->  | J25: =Compétences!K25 -> 5
H26: Sauter | I26: =IF(Compétences!$C26="","",Compétences!$C26) ->  | J26: =Compétences!K26 -> 25
G27: Savoirs | H27: Art/Artisanat () | I27: =IF(Compétences!$C27="","",Compétences!$C27) -> Serrurerie | J27: =Compétences!K27 -> 40
H28: Art/Artisanat () | I28: =IF(Compétences!$C28="","",Compétences!$C28) -> Falsification | J28: =Compétences!K28 -> 40
H29: Évaluer | I29: =IF(Compétences!$C29="","",Compétences!$C29) ->  | J29: =Compétences!K29 -> 5
H30: Jeu () | I30: =IF(Compétences!$C30="","",Compétences!$C30) ->  | J30: =Compétences!K30 -> 10
H31: Premiers soins | I31: =IF(Compétences!$C31="","",Compétences!$C31) ->  | J31: =Compétences!K31 -> 35
H32: Technologie () | I32: =IF(Compétences!$C32="","",Compétences!$C32) ->  | J32: =Compétences!K32 -> 10
H33: Technologie () | I33: =IF(Compétences!$C33="","",Compétences!$C33) ->  | J33: =Compétences!K33 -> 10
H34: Technologie () | I34: =IF(Compétences!$C34="","",Compétences!$C34) ->  | J34: =Compétences!K34 -> 10
G35: Combat | H35: Bagarre | I35: =IF(Compétences!$C35="","",Compétences!$C35) ->  | J35: =Compétences!K35 -> 22
H36: Esquive | I36: =IF(Compétences!$C36="","",Compétences!$C36) ->  | J36: =Compétences!K36 -> 60
H37: Parade | I37: =IF(Compétences!$C37="","",Compétences!$C37) ->  | J37: =Compétences!K37 -> 42
H38: Armes de contact | I38: =IF(Compétences!$C38="","",Compétences!$C38) ->  | J38: =Compétences!K38 -> 22
H39: Armes à distance | I39: =IF(Compétences!$C39="","",Compétences!$C39) ->  | J39: =Compétences!K39 -> 45
H40: Armes lourdes | I40: =IF(Compétences!$C40="","",Compétences!$C40) ->  | J40: =Compétences!K40 -> 15
H41: Arts martiaux () | I41: =IF(Compétences!$C41="","",Compétences!$C41) ->  | J41: =Compétences!K41 -> 0
H42: Arts martiaux () | J42: 0

Sheet Modele-Verso
A1: Nom | C1: Historique | E1: Implants
A2: _perso_ | C2: _histoire.1_ | E2: Nom | F2: Nb | G2: Description | H2: Prix
C3: _histoire.2_ | E3: _implants.1.nom_ | F3: _implants.1.nb_ | G3: _implants.1.desc_ | H3: _implants.1.prix_
A4: Joueur | C4: _histoire.3_ | E4: _implants.2.nom_ | F4: _implants.2.nb_ | G4: _implants.2.desc_ | H4: _implants.2.prix_
A5: _joueur_ | C5: _histoire.4_ | E5: _implants.3.nom_ | F5: _implants.3.nb_ | G5: _implants.3.desc_ | H5: _implants.3.prix_
C6: _histoire.5_ | E6: _implants.4.nom_ | F6: _implants.4.nb_ | G6: _implants.4.desc_ | H6: _implants.4.prix_
C7: _histoire.6_ | E7: _implants.5.nom_ | F7: _implants.5.nb_ | G7: _implants.5.desc_ | H7: _implants.5.prix_
C8: _histoire.7_ | E8: _implants.6.nom_ | F8: _implants.6.nb_ | G8: _implants.6.desc_ | H8: _implants.6.prix_
E9: _implants.7.nom_ | F9: _implants.7.nb_ | G9: _implants.7.desc_ | H9: _implants.7.prix_
C10: Contacts | E10: _implants.8.nom_ | F10: _implants.8.nb_ | G10: _implants.8.desc_ | H10: _implants.8.prix_
C11: _contacts.1_
C12: _contacts.2_ | E12: Matériels
C13: _contacts.3_ | E13: Nom | F13: Nb | G13: Description | H13: Prix
C14: _contacts.4_ | E14: _objets.1.nom_ | F14: _objets.1.nb_ | G14: _objets.1.desc_ | H14: _objets.1.prix_
C15: _contacts.5_ | E15: _objets.2.nom_ | F15: _objets.2.nb_ | G15: _objets.2.desc_ | H15: _objets.2.prix_
E16: _objets.3.nom_ | F16: _objets.3.nb_ | G16: _objets.3.desc_ | H16: _objets.3.prix_
E17: _objets.4.nom_ | F17: _objets.4.nb_ | G17: _objets.4.desc_ | H17: _objets.4.prix_
E18: _objets.5.nom_ | F18: _objets.5.nb_ | G18: _objets.5.desc_ | H18: _objets.5.prix_
E19: _objets.6.nom_ | F19: _objets.6.nb_ | G19: _objets.6.desc_ | H19: _objets.6.prix_
E20: _objets.7.nom_ | F20: _objets.7.nb_ | G20: _objets.7.desc_ | H20: _objets.7.prix_
E21: _objets.8.nom_ | F21: _objets.8.nb_ | G21: _objets.8.desc_ | H21: _objets.8.prix_
E22: _objets.9.nom_ | F22: _objets.9.nb_ | G22: _objets.9.desc_ | H22: _objets.9.prix_
E23: _objets.10.nom_ | F23: _objets.10.nb_ | G23: _objets.10.desc_ | H23: _objets.10.prix_

Sheet Valeurs-Verso
A1: Nom | C1: Historique | E1: Implants
A2: ='Choix initiaux'!A2 -> Ant'AkaR H'alk | C2: =IF(Compétences!M3="","",Compétences!M3) -> Eclose sur un monde trop froid, Ant’AkaR a passé son enfance à rêver de terraformation. Après sa | E2: Nom | F2: Nb | G2: Description | H2: Prix
C3: =IF(Compétences!M4="","",Compétences!M4) -> métamorphose, trop frêle pour la rude vie de terrain, elle a été employée dans la diplomatie. Lors | E3: Téléphone crânien | F3: 1 | G3: Connexion discrète a l'infosphère publique | H3: 0000
A4: Joueur | C4: =IF(Compétences!M5="","",Compétences!M5) -> des négociations avec les Rithai, elle a déjoué un complot contre l’envoyé de la Rithai Kemae. | E4: Port mémoire | F4: 1 | G4: Port pour aiguille de données | H4: 0000
A5: ='Choix initiaux'!A5 -> _ _ _ _ _ _ _ _ _ _ _ _ _ _ _ _ _ _ _ _ | C5: =IF(Compétences!M6="","",Compétences!M6) -> Elle s’est alors passionnée pour les enquêtes et a parcouru les espaces rith et humain. Pour sa | E5: Port mémoire | F5: 1 | G5: Port mémoriel pour compétences | H5: 0000
C6: =IF(Compétences!M7="","",Compétences!M7) -> sécurité, elle y a appris le combat, malgré sa répugnance. Son passé de diplomate, son intelligence | E6: Doigt modulable | F6: 2 | G6: Emplacement pour modules divers | H6: 0000
C7: =IF(Compétences!M8="","",Compétences!M8) -> vive et ses sens toujours aux aguets lui donnent un avantage dans les enquêtes impliquant plusieurs
C8: =IF(Compétences!M9="","",Compétences!M9) -> espèces. Elle est basée sur Nouvelle Hong-Kong, aux limites des espaces k'rinn, humain et rith.
C10: Contacts
C11: =IF(Compétences!M11="","",Compétences!M11) -> Rilathn ud Irilia - Rith - Ambassadeur itinérant Irilia - Lui doit la vie dans l'incident de T'Kell
C12: =IF(Compétences!M12="","",Compétences!M12) -> R’Lef’Kkip – K’Rinn - Marchand et Spatien - Son ancien supérieur sur la station T’Kell | E12: Matériels
C13: =IF(Compétences!M13="","",Compétences!M13) -> Chang-Li Liang - Humaine - Détective - Son employeur sur la station Nouvelle Hong-Kong | E13: Nom | F13: Nb | G13: Description | H13: Prix
C14: =IF(Compétences!M14="","",Compétences!M14) -> R’Lef’Lekt – K’Rinn (Défenseur) - Chasseur de primes - Ennemi depuis T’Kell | E14: Bâton de combat | F14: 1 | G14: Bâton de 2m, se replie en 5cm | H14: 0000
C15: =IF(Compétences!M15="","",Compétences!M15) -> Navnit Sarraoui - Humain - Enquêteur - Police Stellaire, espace humain - Commanditaire régulier | E15: taser camouflé | F15: 1 | G15: Etourisseur, Discret, 5% de détection | H15: 0000
E16: Chargeur Taser | F16: 2 | G16: 30 munitions | H16: 0000
E17: Scanner portatif | F17: 1 | G17: Sonde un objet; +30% Evaluer/Remarquer | H17: 0000
E18: Données de Compétences | F18: 1 | G18: Premiers soins +40% | H18: 0000
E19: Données de Compétences | F19: 1 | G19: Langue (Hoshigo) +30% | H19: 0000
E20: Données de Compétences | F20: 1 | G20: Culture (Spatiens) : +30% | H20: 0000
E21: Données de Compétences | F21: 1 | G21: Pilotage (Cargos) : +30% | H21: 0000

Sheet Fichiers
A1: Recto | B1: Feuille Modèle (SVG)
B2: Feuille finale (SVG)
B3: Correspondance à exporter (TXT)
A4: Verso | B4: Feuille Modèle (SVG)
B5: Feuille finale (SVG)
B6: Correspondance à exporter (TXT)

Sheet Taille
A1: TAIlle | B1: Chang. | C1: Humains | D1: K'Rinn | E1: Marionn. | F1: Rith | G1: Sshaad | H1: Masse (kg) | I1: Paramètre | J1: Valeur
A2: 1 | H2: =J$3*(A2^J$2) -> 0.5 | I2: Exposant | J2: 2
A3: 2 | H3: =J$3*(A3^J$2) -> 2 | I3: Multiplicateur | J3: 0.5
A4: 3 | H4: 4.5
A5: 4 | H5: 8
A6: 5 | H6: 12.5
A7: 6 | H7: 18
A8: 7 | H8: 24.5
A9: 8 | H9: 32
A10: 9 | H10: 40.5
A11: 10 | H11: 50
A12: 11 | H12: 60.5
A13: 12 | H13: 72
A14: 13 | H14: 84.5
A15: 14 | H15: 98
A16: 15 | H16: 112.5
A17: 16 | H17: 128
A18: 17 | H18: 144.5
A19: 18 | H19: 162
A20: 19 | H20: 180.5
A21: 20 | H21: 200
A22: 21 | H22: 220.5
A23: 22 | H23: 242
A24: 23 | H24: 264.5
A25: 24 | H25: =J$3*(A25^J$2) -> 288
A26: 25 | H26: 312.5
A28: Min | B28: 11 | C28: 10 | D28: 8 | E28: 2 | F28: 19 | G28: 11
A29: Max | B29: 20 | C29: 16 | D29: 14 | E29: 5 | F29: 25 | G29: 17
A30: Max-Min | B30: =B29-B28 -> 9 | C30: =C29-C28 -> 6 | D30: 6 | E30: 3 | F30: 6 | G30: 6
A31: a | B31: =B28-B32*2 -> 8 | C31: =C28-C32*2 -> 8 | D31: 6 | E31: 1 | F31: 17 | G31: 9
A32: b | B32: =B30/6 -> 1.5 | C32: =C30/6 -> 1 | D32: 1 | E32: 0.5 | F32: 1 | G32: 1
A33: a + b * 2D8

Sheet Compétence par défaut
A1: Domaine | B1: Compétence | C1: Spécialité | D1: Base | E1: Changeforme | F1: Humain | G1: K'Rinn | H1: Marionnettiste | I1: Rith | J1: Sshaad
A2: Interaction | B2: Baratin | D2: 5
B3: Commandement | D3: 5 | I3: 20
B4: Culture () | C4: 1ère | D4: 15
B5: Culture () | C5: 2ème | D5: 5
B6: Enseignement | D6: 10 | F6: 20 | G6: 20 | J6: 30
B7: Investigation | D7: 15
B8: Langue () | C8: 1ère | D8: 25
B9: Langue () | C9: 2ème | D9: 10 | G9: 20
B10: Langue () | C10: 3ème | D10: 10 | G10: 15
B11: Marchandage | D11: 5
B12: Persuasion | D12: 15
B13: Stratégie | D13: 5 | F13: 20 | I13: 20 | J13: 20
A14: Perception | B14: Remarquer | D14: 20
B15: Intuition | D15: 10 | E15: 20
B16: Orientation () | C16: 1ère | D16: 5
A17: Dextérité | B17: Déguisement | D17: 10 | E17: 25
B18: Discrétion | D18: 10 | E18: 25 | H18: 25 | I18: 5
B19: Dissimulation | D19: 10
B20: Illusion | D20: 5
A21: Physique | B21: Pilotage () | C21: 1ère | D21: DEX | E21: =Caractéristiques!C$4 -> 12 | F21: =Caractéristiques!D$4 -> 12 | G21: =Caractéristiques!E$4 -> 15 | H21: =Caractéristiques!F$4 -> 13 | I21: =Caractéristiques!G$4 -> 9 | J21: =Caractéristiques!H$4 -> 9
B22: Pilotage () | C22: 2ème | D22: DEX | E22: =Caractéristiques!C$4 -> 12 | F22: =Caractéristiques!D$4 -> 12 | G22: =Caractéristiques!E$4 -> 15 | H22: =Caractéristiques!F$4 -> 13 | I22: =Caractéristiques!G$4 -> 9 | J22: =Caractéristiques!H$4 -> 9
B23: Grimper | E23: 30 | F23: 30 | G23: 20 | H23: 45 | I23: 5 | J23: 20
B24: Lancer | D24: 25 | E24: 15 | H24: 5 | I24: 40
B25: Nager | D25: 25 | G25: 5 | H25: 10 | J25: 40
B26: Sauter | D26: 25 | E26: 10 | H26: 10
A27: Savoirs | B27: Art/Artisanat () | C27: 1ère | D27: 10
B28: Art/Artisanat () | C28: 2ème | D28: 10
B29: Évaluer | D29: 5
B30: Jeu () | C30: 1ère | D30: 10
B31: Premiers soins | D31: 5 | H31: 25
B32: Technologie () | C32: 1ère | D32: 10
B33: Technologie () | C33: 2ème | D33: 10
B34: Technologie () | C34: 3ème | D34: 10
A35: Combat | B35: Bagarre | D35: FOR+DEX | E35: =Caractéristiques!C$4+Caractéristiques!C$5 -> 22 | F35: =Caractéristiques!D$4+Caractéristiques!D$5 -> 25 | G35: =Caractéristiques!E$4+Caractéristiques!E$5 -> 22 | H35: =Caractéristiques!F$4+Caractéristiques!F$5 -> 16 | I35: =Caractéristiques!G$4+Caractéristiques!G$5 -> 28 | J35: =Caractéristiques!H$4+Caractéristiques!H$5 -> 22
B36: Esquive | D36: DEX*2 | E36: =Caractéristiques!C$4*2 -> 24 | F36: =Caractéristiques!D$4*2 -> 24 | G36: =Caractéristiques!E$4*2 -> 30 | H36: =Caractéristiques!F$4*2 -> 26 | I36: =Caractéristiques!G$4*2 -> 18 | J36: =Caractéristiques!H$4*2 -> 18
B37: Parade | D37: FOR+DEX | E37: =(Caractéristiques!C$4+Caractéristiques!C$5) -> 22 | F37: =(Caractéristiques!D$4+Caractéristiques!D$5) -> 25 | G37: =(Caractéristiques!E$4+Caractéristiques!E$5) -> 22 | H37: =(Caractéristiques!F$4+Caractéristiques!F$5) -> 16 | I37: =(Caractéristiques!G$4+Caractéristiques!G$5) -> 28 | J37: =(Caractéristiques!H$4+Caractéristiques!H$5) -> 22
B38: Armes de contact | D38: FOR+DEX | E38: =(Caractéristiques!C$4+Caractéristiques!C$5) -> 22 | F38: =(Caractéristiques!D$4+Caractéristiques!D$5) -> 25 | G38: =(Caractéristiques!E$4+Caractéristiques!E$5) -> 22 | H38: =(Caractéristiques!F$4+Caractéristiques!F$5) -> 16 | I38: =(Caractéristiques!G$4+Caractéristiques!G$5) -> 28 | J38: =(Caractéristiques!H$4+Caractéristiques!H$5) -> 22
B39: Armes à distance | D39: DEX | E39: =Caractéristiques!C$4 -> 12 | F39: =Caractéristiques!D$4 -> 12 | G39: =Caractéristiques!E$4 -> 15 | H39: =Caractéristiques!F$4 -> 13 | I39: =Caractéristiques!G$4 -> 9 | J39: =Caractéristiques!H$4 -> 9
B40: Armes lourdes | D40: DEX | E40: =Caractéristiques!C$4 -> 12 | F40: =Caractéristiques!D$4 -> 12 | G40: =Caractéristiques!E$4 -> 15 | H40: =Caractéristiques!F$4 -> 13 | I40: =Caractéristiques!G$4 -> 9 | J40: =Caractéristiques!H$4 -> 9
B41: Arts martiaux ()
A42: Affectés | E42: =COUNTIF(E2:E41,">0") -> 14 | F42: 11 | G42: 13 | H42: 14 | I42: 13 | J42: 12
A43: Base | D43: =SUM(D$2:D$41) -> 340 | E43: =SUMIF(E$2:E$41,"",$D$2:$D$41) -> 260 | F43: 325 | G43: 285 | H43: 250 | I43: 295 | J43: 300
A44: Espèce | E44: =SUMIF(E$2:E$41,">0") -> 263 | F44: 217 | G44: 236 | H44: 246 | I44: 228 | J44: 230
A45: Total | E45: =E43+E44 -> 523 | F45: 542 | G45: 521 | H45: 496 | I45: 523 | J45: 530

Sheet Jeunesse
A1: Domaine | B1: Compétence | C1: Changeforme | D1: Humain | E1: K'Rinn | F1: Marionnettiste | G1: Rith | H1: Sshaad
A2: Affectés | C2: =COUNTIF(C3:C37,"="&"*") -> 2 | D2: 2 | E2: 2 | F2: 2 | G2: 2 | H2: 2
A3: Interaction | B3: Baratin
B4: Commandement
B5: Culture () | C5: Société de naissance | D5: Société de naissance | E5: Société de naissance | F5: Société de naissance | G5: Société de naissance | H5: Société de renaissance
B6: Culture ()
B7: Enseignement
B8: Investigation
B9: Langue () | C9: Langue de Ruche | D9: Langue maternelle | E9: Langue de nurserie | F9: Langue du parent | G9: Langue du clan de naissance | H9: Langue du daneb de renaissance
B10: Langue ()
B11: Langue ()
B12: Marchandage
B13: Persuasion
B14: Stratégie
A15: Perception | B15: Remarquer
B16: Intuition
B17: Orientation ()
A18: Dextérité | B18: Déguisement
B19: Discrétion
B20: Dissimulation
B21: Illusion
A22: Physique | B22: Pilotage ()
B23: Pilotage ()
B24: Grimper
B25: Lancer
B26: Nager
B27: Sauter
A28: Savoirs | B28: Art/Artisanat ()
B29: Art/Artisanat ()
B30: Évaluer
B31: Jeu ()
B32: Premiers soins
B33: Technologie ()
B34: Technologie ()
B35: Technologie ()
A36: Combat | B36: Bagarre
B37: Esquive
B38: Parade
B39: Armes de contact
B40: Armes à distance
B41: Armes lourdes
B42: Arts martiaux

Sheet Espèce
A1: Domaine | B1: Compétence | C1: Changeforme | D1: Humain | E1: K'Rinn | F1: Marionnettiste | G1: Rith | H1: Sshaad
A2: Affectés | C2: =COUNTIF(C3:C42,"="&"*") -> 8 | D2: 8 | E2: 8 | F2: 8 | G2: 8 | H2: 8
A3: Interaction | B3: Baratin | D3: x
B4: Commandement | G4: x
B5: Culture ()
B6: Culture () | H6: x
B7: Enseignement
B8: Investigation
B9: Langue ()
B10: Langue () | C10: Une langue des Figés | D10: Une autre langue | E10: Une autre langue | F10: Langue autre espèce | G10: Une autre langue | H10: Une autre langue
B11: Langue ()
B12: Marchandage | E12: x
B13: Persuasion | E13: x
B14: Stratégie | G14: x
A15: Perception | B15: Remarquer
B16: Intuition | F16: x
B17: Orientation () | C17: Milieu de naissance | F17: Milieu de jeunesse | H17: Milieu de jeunesse
A18: Dextérité | B18: Déguisement | C18: x | F18: x
B19: Discrétion | C19: x
B20: Dissimulation | C20: x
B21: Illusion
A22: Physique | B22: Pilotage () | D22: Véhicules de surface | E22: Véhicules de surface | F22: Porteurs | H22: Véhicules aériens
B23: Pilotage () | H23: Autre type de véhicules
B24: Grimper | D24: x | F24: x
B25: Lancer
B26: Nager | C26: x
B27: Sauter | G27: x
A28: Savoirs | B28: Art/Artisanat ()
B29: Art/Artisanat ()
B30: Évaluer | D30: x
B31: Jeu () | E31: Spiraxy
B32: Premiers soins
B33: Technologie () | C33: Mécanique | D33: Armements | E33: Cybernétique | F33: Génétique | G33: Armements | H33: Mécanique
B34: Technologie () | C34: Bionique | F34: Bionique
B35: Technologie ()
A36: Combat | B36: Bagarre | D36: x | G36: x | H36: x
B37: Esquive | E37: x | H37: x
B38: Parade | E38: x | G38: x
B39: Armes de contact | D39: x | G39: x
B40: Armes à distance
B41: Armes lourdes
B42: Arts martiaux

Sheet Métiers
A1: Domaine | B1: Compétence | C1: Businessbeing | D1: Marchand | E1: Contrebandier | F1: Arnaqueur | G1: Policier | H1: Détective | I1: Journaliste | J1: Voleur | K1: Hacker | L1: Soldat | M1: Mercenaire | N1: Officier | O1: Reporter | P1: Mécanicien | Q1: Pilote | R1: Astrogateur | S1: Chasseur d'épaves | T1: Médecin
A2: Affectés | C2: =COUNTIF(C3:C42,"="&"*") -> 10 | D2: 10 | E2: 10 | F2: 10 | G2: 10 | H2: 10 | I2: 10 | J2: 10 | K2: 10 | L2: 10 | M2: =COUNTIF(M3:M42,"="&"*") -> 10 | N2: 10 | O2: 10 | P2: 10 | Q2: 10 | R2: 10 | S2: 10 | T2: 10
A3: Interaction | B3: Baratin | C3: x | D3: x | F3: x | G3: x | H3: x | I3: x | J3: x | O3: x | S3: x
B4: Commandement | N4: x | Q4: x | T4: x
B5: Culture ()
B6: Culture () | C6: Une au choix parmi (Bureaucratie, Affaires) | D6: Une au choix parmi (Rue, Bureaucratie, Spatiens) | E6: Une au choix parmi (Rue, Spatiens) | F6: Une au choix parmi (Affaires, Bureaucratie) | G6: Une au choix parmi (Affaires, Rue, Droit, Bureaucratie) | H6: Une au choix parmi (Affaires, Spatiens, Bureaucratie, Rue) | I6: Une au choix parmi (Affaires, Rue) | J6: Rue | K6: Hacking | L6: Armée | M6: Armée | N6: Armée | O6: Armée | P6: Une au choix parmi (Rue, Bureaucratie, Spatiens) | Q6: Une au choix parmi (Rue, Armée, Spatiens) | R6: Spatiens | S6: Spatiens | T6: Soignants
B7: Enseignement | R7: x | T7: x
B8: Investigation | G8: x | H8: x | I8: x | S8: x
B9: Langue ()
B10: Langue () | C10: Selon historique | F10: Selon historique | O10: Selon historique
B11: Langue () | C11: Selon historique | D11: Selon historique | E11: Selon historique | F11: Selon historique | G11: Selon historique | H11: Selon historique | I11: Selon historique | J11: Selon historique | K11: Selon historique | L11: Selon historique | M11: Selon historique | N11: Selon historique | O11: Selon historique | P11: Selon historique | Q11: Selon historique | R11: Selon historique | S11: Selon historique | T11: Selon historique
B12: Marchandage | C12: x | D12: x | E12: x | M12: x | P12: x | S12: x
B13: Persuasion | C13: x | F13: x | G13: x | I13: x | S13: x
B14: Stratégie | C14: x | N14: x | R14: x
A15: Perception | B15: Remarquer | D15: x | G15: x | H15: x | I15: x | J15: x | K15: x | L15: x | O15: x | T15: x
B16: Intuition | C16: x | I16: x | R16: x | T16: x
B17: Orientation () | L17: x | Q17: Une au choix parmi (Espace, Mer, Planète) | R17: Astrogation | S17: Astrogation
A18: Dextérité | B18: Déguisement | I18: x
B19: Discrétion | D19: x | H19: x | J19: x | K19: x | O19: x
B20: Dissimulation | D20: x | E20: x | F20: x | J20: x | O20: x
B21: Illusion
A22: Physique | B22: Pilotage () | E22: Transports spatiaux | N22: Véhicules de surface | Q22: Une au choix parmi (Transports spatiaux, Véhicules de surface, Exosquelettes, Véhicules aériens, Véhicules marins) | R22: Transports spatiaux | S22: Transports spatiaux
B23: Pilotage () | P23: Une au choix parmi (Transports spatiaux, Véhicules de surface, Exosquelettes, Véhicules aériens, Véhicules marins) | Q23: Une au choix parmi (Transports spatiaux, Véhicules de surface, Exosquelettes, Véhicules aériens, Véhicules marins)
B24: Grimper
B25: Lancer
B26: Nager
B27: Sauter
A28: Savoirs | B28: Art/Artisanat () | D28: Un au choix | F28: Falsification | H28: Serrurerie | I28: Ecriture | J28: Falsification | K28: Falsification | O28: Ecriture | P28: Falsification | T28: Soins
B29: Art/Artisanat () | J29: Serrurerie | K29: Serrurerie
B30: Évaluer | C30: x | D30: x | E30: x | F30: x | M30: x | S30: x
B31: Jeu () | C31: Spiraxy | D31: Spiraxy | E31: Spiraxy | F31: Un au choix
B32: Premiers soins | G32: x | N32: x | T32: x
B33: Technologie () | E33: Mécanique | I33: Informatique | K33: Informatique | O33: Armements | P33: Une au choix parmi (Mécanique, Bionique, Electronique, Armements) | Q33: Une au choix parmi (Mécanique, Bionique, Electronique, Armements) | R33: Une au choix parmi (Mécanique, Electronique) | S33: Senseurs | T33: Médecine
B34: Technologie () | K34: Electronique | P34: Une au choix parmi (Mécanique, Bionique, Electronique, Armements) | T34: Bionique
B35: Technologie () | K35: Bionique | P35: Une au choix parmi (Mécanique, Bionique, Electronique, Armements)
A36: Combat | B36: Bagarre | E36: x | G36: x | H36: x | J36: x | K36: x | L36: x | M36: x | N36: x | P36: x | Q36: x | R36: x
B37: Esquive | E37: x | F37: x | H37: x | L37: x | M37: x | N37: x | O37: x | P37: x | Q37: x | R37: x
B38: Parade | L38: x | M38: x | N38: x
B39: Armes de contact | G39: x | H39: x | J39: x | L39: x | M39: x
B40: Armes à distance | G40: x | L40: x | M40: x
B41: Armes lourdes | L41: x | M41: x | Q41: x
B42: Arts martiaux | N42: x

Sheet Liste-Contacts
A1: Nom | B1: Points | C1: Effets en jeu | D1: Contact
D2: Espèce | E2: Métier | F2: Lieu | G2: Détails
A3: Rilathn d’rih Arlinal | B3: 50 | C3: Prix réduits sur les pièces et les vaisseaux Informations sur les Adrims Libres, les contrebandiers et les pirates Motivations : Adrims Libres, combattre les Gham Garri, indépendance des Hoshi no Hekka, loyauté aux Capitaines des Forteresses | D3: Rith | E3: Marchand | F3: Eden High | G3: Adrim exfiltré
A4: Chang-Li Liang | B4: 50 | C4: Pourra être contacté dans le système Nouvelle Hong-Kong Informations sur le Conseil K'Rinn, l'Alliance Planètariste, les contrebandiers et pirates locaux Motivations : argent et justice, mais refusera d'agir contre le clan Pei | D4: Humaine | E4: Détective | F4: Nouvelle Hong-Kong | G4: Affiliée au clan Pei

Sheet Liste-Equipement
A1: Nom | B1: Points | C1: Description (1 ligne) | D1: Effets en jeu | E1: Prix | F1: Implant ? | G1: Arme ? | H1: Arme
H2: Comp. | I2: Cp/Rnd | J2: Dégâts | K2: Munitions | L2: PA
A3: Téléphone crânien | B3: 2 | C3: Connexion discrète à l'infosphère publique | D3: 10% de risque de se faire détecter si quelqu'un écoute Risque monte à 30% si tentative de l'utiliser pour hacker | F3: x
A4: Port mémoire | B4: 5 | C4: Port pour aiguilles de données | D4: Permet de connecter des aiguilles de données | F4: x
A5: Doigt modulaire | B5: 15 | C5: Phalange retirée, remplaçable par un module | D5: Livrée avec module neutre imitant un vrai doigt | F5: x
A6: Scanner portatif | B6: 10 | C6: Sonde un objet, +30% Evaluer/Remarquer | D6: Compter 1 mn complète par jet
A7: Mémoire 10 To | B7: 1 | C7: Aiguille de données
A8: Module Gaz | B8: 10 | C8: Doigt-Gaz (Bagarre/Discrétion)
A9: Rech. Gaz Influence | B9: 2 | C9: Si respiré, -20% contre toute influence
A10: Rech. Gaz Soporifique | B10: 2 | C10: Si respiré, CONstitution contre sommeil
A11: Bâton de combat | B11: 10 | C11: Bâton de 2m, se replie en 5cm | G11: x | H11: C | I11: 1 | J11: 1D8 | L11: 12
A12: Coutelas camouflé | B12: 5 | C12: Discret, 5% de détection | G12: x | H12: C | I12: 1 | J12: 1D3+1 | L12: 3

Sheet Carac. Min
A1: Caractéristique | B1: 2D4 (2-8) | C1: Changeforme | D1: Humain | E1: K'Rinn | F1: Marionnettiste | G1: Rith | H1: Sshaad
A2: TAIlle | B2: 2 | C2: =ROUNDUP(8+$B2*1.5,0) -> 11 | D2: =8+$B2*1 -> 10 | E2: =6+$B2*1 -> 8 | F2: =ROUNDUP(1+$B2/2,0) -> 2 | G2: =17+$B2*1 -> 19 | H2: =9+$B2*1 -> 11
A3: APParence | B3: 2 | C3: =($B3+7)*1 -> 9 | D3: 9 | E3: 9 | F3: 9 | G3: 9 | H3: 9
A4: DEXtérité | B4: 2 | C4: =($B4+7)*1 -> 9 | D4: =($B4+7)*1 -> 9 | E4: =($B4+10)*1 -> 12 | F4: =($B4+8)*1 -> 10 | G4: =($B4+4)*1 -> 6 | H4: =($B4+4)*1 -> 6
A5: FORce | B5: 2 | C5: =($B5+7)*1 -> 9 | D5: =($B5+10)*1 -> 12 | E5: =($B5+4)*1 -> 6 | F5: =ROUNDUP(($B5+2)/2,0) -> 2 | G5: =($B5+16)*1 -> 18 | H5: =($B5+10)*1 -> 12
A6: CONstitution | B6: 2 | C6: =($B6+7)*1 -> 9 | D6: =($B6+4)*1 -> 6 | E6: =($B6+4)*1 -> 6 | F6: =($B6+4)*1 -> 6 | G6: =($B6+10)*1 -> 12 | H6: =($B6+10)*1 -> 12
A7: INTelligence | B7: 2 | C7: =($B7+7)*1 -> 9 | D7: =($B7+10)*1 -> 12 | E7: =($B7+10)*1 -> 12 | F7: =($B7+13)*1 -> 15 | G7: =($B7+7)*1 -> 9 | H7: =($B7+5)*1 -> 7
A8: PERception | B8: 2 | C8: =($B8+8)*1 -> 10 | D8: =($B8+7)*1 -> 9 | E8: =($B8+7)*1 -> 9 | F8: =($B8+10)*1 -> 12 | G8: =($B8+8)*1 -> 10 | H8: =($B8+11)*1 -> 13
A9: VOLonté | B9: 2 | C9: =($B9+7)*1 -> 9 | D9: =($B9+4)*1 -> 6 | E9: =($B9+7)*1 -> 9 | F9: =($B9+13)*1 -> 15 | G9: =($B9+10)*1 -> 12 | H9: =($B9+10)*1 -> 12
A11: Points de Vie | C11: =ROUNDUP((C2+C6)/2,0) -> 10 | D11: 8 | E11: 7 | F11: 4 | G11: 16 | H11: 12
A12: Initiative | C12: =C4+10 -> 19 | D12: 19 | E12: 22 | F12: 20 | G12: 16 | H12: 16
A13: Bonus aux dégâts | C13: =LOOKUP(C5+C2,{2;13;17;25;33;41;57;100},{"-1D6";"-1D4";"Aucun";"+1D4";"+1D6";"+2D6";"+3D6"}) -> Aucun | D13: =LOOKUP(D5+D2,{2;13;17;25;33;41;57;100},{"-1D6";"-1D4";"Aucun";"+1D4";"+1D6";"+2D6";"+3D6"}) -> Aucun | E13: =LOOKUP(E5+E2,{2;13;17;25;33;41;57;100},{"-1D6";"-1D4";"Aucun";"+1D4";"+1D6";"+2D6";"+3D6"}) -> -1D4 | F13: =LOOKUP(F5+F2,{2;13;17;25;33;41;57;100},{"-1D6";"-1D4";"Aucun";"+1D4";"+1D6";"+2D6";"+3D6"}) -> -1D6 | G13: =LOOKUP(G5+G2,{2;13;17;25;33;41;57;100},{"-1D6";"-1D4";"Aucun";"+1D4";"+1D6";"+2D6";"+3D6"}) -> +1D6 | H13: =LOOKUP(H5+H2,{2;13;17;25;33;41;57;100},{"-1D6";"-1D4";"Aucun";"+1D4";"+1D6";"+2D6";"+3D6"}) -> Aucun
A14: Armes naturelles | C14: 1D3 | D14: 1D3 | E14: 1D3 | F14: 1D2 | G14: 1D4 | H14: 1D4
A15: Armure naturelle | C15: 1 | D15: 1 | E15: 1 | F15: 0 | G15: 2 | H15: 2
A16: Masse (kg) | C16: =0.5*C2^2 -> 60.5 | D16: =0.5*D2^2 -> 50 | E16: 32 | F16: 2 | G16: 180.5 | H16: 60.5

Sheet Carac. Moy
A1: Caractéristique | B1: 2D4 (2-8) | C1: Changeforme | D1: Humain | E1: K'Rinn | F1: Marionnettiste | G1: Rith | H1: Sshaad
A2: TAIlle | B2: =(8+2)/2 -> 5 | C2: =ROUNDUP(8+$B2*1.5,0) -> 16 | D2: =8+$B2*1 -> 13 | E2: =6+$B2*1 -> 11 | F2: =ROUNDUP(1+$B2/2,0) -> 4 | G2: =17+$B2*1 -> 22 | H2: =9+$B2*1 -> 14
A3: APParence | B3: =(8+2)/2 -> 5 | C3: =($B3+7)*1 -> 12 | D3: 12 | E3: 12 | F3: 12 | G3: 12 | H3: 12
A4: DEXtérité | B4: 5 | C4: =($B4+7)*1 -> 12 | D4: =($B4+7)*1 -> 12 | E4: =($B4+10)*1 -> 15 | F4: =($B4+8)*1 -> 13 | G4: =($B4+4)*1 -> 9 | H4: =($B4+4)*1 -> 9
A5: FORce | B5: 5 | C5: =($B5+7)*1 -> 12 | D5: =($B5+10)*1 -> 15 | E5: =($B5+4)*1 -> 9 | F5: =ROUNDUP(($B5+2)/2,0) -> 4 | G5: =($B5+16)*1 -> 21 | H5: =($B5+10)*1 -> 15
A6: CONstitution | B6: 5 | C6: =($B6+7)*1 -> 12 | D6: =($B6+4)*1 -> 9 | E6: =($B6+4)*1 -> 9 | F6: =($B6+4)*1 -> 9 | G6: =($B6+10)*1 -> 15 | H6: =($B6+10)*1 -> 15
A7: INTelligence | B7: 5 | C7: =($B7+7)*1 -> 12 | D7: =($B7+10)*1 -> 15 | E7: =($B7+10)*1 -> 15 | F7: =($B7+13)*1 -> 18 | G7: =($B7+7)*1 -> 12 | H7: =($B7+5)*1 -> 10
A8: PERception | B8: 5 | C8: =($B8+8)*1 -> 13 | D8: =($B8+7)*1 -> 12 | E8: =($B8+7)*1 -> 12 | F8: =($B8+10)*1 -> 15 | G8: =($B8+8)*1 -> 13 | H8: =($B8+11)*1 -> 16
A9: VOLonté | B9: 5 | C9: =($B9+7)*1 -> 12 | D9: =($B9+4)*1 -> 9 | E9: =($B9+7)*1 -> 12 | F9: =($B9+13)*1 -> 18 | G9: =($B9+10)*1 -> 15 | H9: =($B9+10)*1 -> 15
A11: Points de Vie | C11: =ROUNDUP((C2+C6)/2,0) -> 14 | D11: 11 | E11: 10 | F11: 7 | G11: 19 | H11: 15
A12: Initiative | C12: =C4+10 -> 22 | D12: 22 | E12: 25 | F12: 23 | G12: 19 | H12: 19
A13: Bonus aux dégâts | C13: =LOOKUP(C5+C2,{2;13;17;25;33;41;57;100},{"-1D6";"-1D4";"Aucun";"+1D4";"+1D6";"+2D6";"+3D6"}) -> +1D4 | D13: =LOOKUP(D5+D2,{2;13;17;25;33;41;57;100},{"-1D6";"-1D4";"Aucun";"+1D4";"+1D6";"+2D6";"+3D6"}) -> +1D4 | E13: =LOOKUP(E5+E2,{2;13;17;25;33;41;57;100},{"-1D6";"-1D4";"Aucun";"+1D4";"+1D6";"+2D6";"+3D6"}) -> Aucun | F13: =LOOKUP(F5+F2,{2;13;17;25;33;41;57;100},{"-1D6";"-1D4";"Aucun";"+1D4";"+1D6";"+2D6";"+3D6"}) -> -1D6 | G13: =LOOKUP(G5+G2,{2;13;17;25;33;41;57;100},{"-1D6";"-1D4";"Aucun";"+1D4";"+1D6";"+2D6";"+3D6"}) -> +2D6 | H13: =LOOKUP(H5+H2,{2;13;17;25;33;41;57;100},{"-1D6";"-1D4";"Aucun";"+1D4";"+1D6";"+2D6";"+3D6"}) -> +1D4
A14: Armes naturelles | C14: 1D3 | D14: 1D3 | E14: 1D3 | F14: 1D2 | G14: 1D4 | H14: 1D4
A15: Armure naturelle | C15: 1 | D15: 1 | E15: 1 | F15: 0 | G15: 2 | H15: 2
A16: Masse (kg) | C16: =0.5*C2^2 -> 128 | D16: =0.5*D2^2 -> 84.5 | E16: 60.5 | F16: 8 | G16: 242 | H16: 98

Sheet Carac. Max
A1: Caractéristique | B1: 2D4 (2-8) | C1: Changeforme | D1: Humain | E1: K'Rinn | F1: Marionnettiste | G1: Rith | H1: Sshaad
A2: TAIlle | B2: 8 | C2: =ROUNDUP(8+$B2*1.5,0) -> 20 | D2: =8+$B2*1 -> 16 | E2: =6+$B2*1 -> 14 | F2: =ROUNDUP(1+$B2/2,0) -> 5 | G2: =17+$B2*1 -> 25 | H2: =9+$B2*1 -> 17
A3: APParence | B3: 8 | C3: =($B3+7)*1 -> 15 | D3: 15 | E3: 15 | F3: 15 | G3: 15 | H3: 15
A4: DEXtérité | B4: 8 | C4: =($B4+7)*1 -> 15 | D4: =($B4+7)*1 -> 15 | E4: =($B4+10)*1 -> 18 | F4: =($B4+8)*1 -> 16 | G4: =($B4+4)*1 -> 12 | H4: =($B4+4)*1 -> 12
A5: FORce | B5: 8 | C5: =($B5+7)*1 -> 15 | D5: =($B5+10)*1 -> 18 | E5: =($B5+4)*1 -> 12 | F5: =ROUNDUP(($B5+2)/2,0) -> 5 | G5: =($B5+16)*1 -> 24 | H5: =($B5+10)*1 -> 18
A6: CONstitution | B6: 8 | C6: =($B6+7)*1 -> 15 | D6: =($B6+4)*1 -> 12 | E6: =($B6+4)*1 -> 12 | F6: =($B6+4)*1 -> 12 | G6: =($B6+10)*1 -> 18 | H6: =($B6+10)*1 -> 18
A7: INTelligence | B7: 8 | C7: =($B7+7)*1 -> 15 | D7: =($B7+10)*1 -> 18 | E7: =($B7+10)*1 -> 18 | F7: =($B7+13)*1 -> 21 | G7: =($B7+7)*1 -> 15 | H7: =($B7+5)*1 -> 13
A8: PERception | B8: 8 | C8: =($B8+8)*1 -> 16 | D8: =($B8+7)*1 -> 15 | E8: =($B8+7)*1 -> 15 | F8: =($B8+10)*1 -> 18 | G8: =($B8+8)*1 -> 16 | H8: =($B8+11)*1 -> 19
A9: VOLonté | B9: 8 | C9: =($B9+7)*1 -> 15 | D9: =($B9+4)*1 -> 12 | E9: =($B9+7)*1 -> 15 | F9: =($B9+13)*1 -> 21 | G9: =($B9+10)*1 -> 18 | H9: =($B9+10)*1 -> 18
A11: Points de Vie | C11: =ROUNDUP((C2+C6)/2,0) -> 18 | D11: 14 | E11: 13 | F11: 9 | G11: 22 | H11: 18
A12: Initiative | C12: =C4+10 -> 25 | D12: 25 | E12: 28 | F12: 26 | G12: 22 | H12: 22
A13: Bonus aux dégâts | C13: =LOOKUP(C5+C2,{2;13;17;25;33;41;57;100},{"-1D6";"-1D4";"Aucun";"+1D4";"+1D6";"+2D6";"+3D6"}) -> +1D6 | D13: =LOOKUP(D5+D2,{2;13;17;25;33;41;57;100},{"-1D6";"-1D4";"Aucun";"+1D4";"+1D6";"+2D6";"+3D6"}) -> +1D6 | E13: =LOOKUP(E5+E2,{2;13;17;25;33;41;57;100},{"-1D6";"-1D4";"Aucun";"+1D4";"+1D6";"+2D6";"+3D6"}) -> +1D4 | F13: =LOOKUP(F5+F2,{2;13;17;25;33;41;57;100},{"-1D6";"-1D4";"Aucun";"+1D4";"+1D6";"+2D6";"+3D6"}) -> -1D6 | G13: =LOOKUP(G5+G2,{2;13;17;25;33;41;57;100},{"-1D6";"-1D4";"Aucun";"+1D4";"+1D6";"+2D6";"+3D6"}) -> +2D6 | H13: =LOOKUP(H5+H2,{2;13;17;25;33;41;57;100},{"-1D6";"-1D4";"Aucun";"+1D4";"+1D6";"+2D6";"+3D6"}) -> +1D6
A14: Armes naturelles | C14: 1D3 | D14: 1D3 | E14: 1D3 | F14: 1D2 | G14: 1D4 | H14: 1D4
A15: Armure naturelle | C15: 1 | D15: 1 | E15: 1 | F15: 0 | G15: 2 | H15: 2
A16: Masse (kg) | C16: =0.5*C2^2 -> 200 | D16: =0.5*D2^2 -> 128 | E16: 98 | F16: 12.5 | G16: 312.5 | H16: 144.5
